{"text_format":"3","workbook":"xlsx","n_sheets":17,"sheets":["Инструкция","Титульный","Параметры","Территории","Информация о тарифе","Тепловая энергия","Горячая вода (по компонентам)","Плата за подключение","Формы 12-13","Публикация информации","Комментарий","Ошибки и предупреждения","Columns","Rows","Reference","RegistryMunicipal","SheetList"],"not_rendered":{"images":18,"macros":1,"external_links":3,"defined_names":210},"read":"whole","date_system":"1900"}

{"sheet":"Инструкция","index":0,"n_rows":173,"n_cols":16,"rows_kept":173,"merged":[[1,1,1,6],[2,1,2,2],[4,1,4,24],[6,4,22,23],[25,5,25,12],[25,15,25,23],[26,5,26,12],[26,15,26,23],[27,15,27,23],[43,4,61,23],[63,4,63,23],[64,4,64,5],[64,6,64,10],[65,4,65,5],[65,6,65,9],[81,4,99,23],[100,4,100,23],[101,5,103,23],[104,5,104,23],[105,6,143,23],[145,4,146,23],[147,5,156,23],[157,5,157,18],[159,5,159,23],[170,1,170,24],[171,1,171,24],[172,4,172,16]]}
[]
[null,{"$f":"\"Код шаблона: \" & Getcode()","v":"Код шаблона: ELPASS.JKH.OPEN.INFO.PRICE.WARM"}]
[null,{"$f":"\"Версия \" & Getversion() & \" от \" & GetTemplateDate()","v":"Версия 1.0 от 01.10.2017"}]
[]
[null,{"$f":"GetTemplateName()","v":"Показатели, подлежащие раскрытию в сфере теплоснабжения и сфере оказания услуг по передаче тепловой энергии (цены и тарифы)"}]
[]
[{"$nulls":4},"• На рабочем месте должна быть установлена полная версия приложения Microsoft Office Excel 2007 SP3, 2010, 2013, 2016. Microsoft Office Excel 2003 или иные офисные пакеты не поддерживаются.\n\n• Для корректной работы отчёта требуется включить макросы и выбрать низкий уровень безопасности:\nВ меню MS Excel 2007/2010: Параметры Excel | Центр управления безопасностью | Параметры центра управления безопасностью | Параметры макросов | Включить все макросы | ОК\n\n• Не рекомендуется снимать защиту с листов и каким-либо образом модифицировать защищаемые формулы и расчётные поля. В случае внесения несанкционированных изменений отчёт будет отклонён системой\n\n• При сохранении не следует выбирать формат XLSX (Книга Excel), так как в указанном формате макросы, необходимые для работы отчёта, безвозвратно удаляются, а также форматы XLS или XLSB. Должен использоваться формат XLSM\n\n"]
{"$rows_empty":18}
[{"$nulls":4},"A"," - не обязательные для заполнения",{"$nulls":8},"A"," - обязательные для заполнения"]
[{"$nulls":4},"A"," - заполняемые автоматически",{"$nulls":8},"A"," - незаполняемые поля"]
{"$rows_empty":16}
[{"$nulls":4},"• При сохранении отчета осуществляется проверка корректности данных, в том числе на наличие значений в ячейках, обязательных для заполнения\n\n• Если какая-то ячейка не удовлетворяет условию проверки, на лист «Ошибки и предупреждения» добавляется гиперссылка на данную ячейку и указывается причина ошибки\n\n• В колонке «Статус» для каждого сообщения возможны 2 значения: ошибка и предупреждение\n\n• При наличии сообщений со статусом «Ошибка» отчет будет отклонён системой\n\n• Сообщения со статусом «Предупреждение» носят информационный характер, и такой отчет будет принят системой"]
{"$rows_empty":19}
[{"$nulls":4},"Служба технической поддержки группы компаний \"Экстрим\""]
[{"$nulls":4},"E-mail:",null,"rek@xrm.ru"]
[{"$nulls":4},"Телефон:",null,"(343) 2222-139"]
{"$rows_empty":15}
[{"$nulls":4},"• На листах «Титульный», «Параметры» и «Территории» обязательно заполните все ячейки голубого цвета. \nДалее нажмите кнопку «Начать заполнение отчета». Отобразятся листы для заполнения.\n\n• Если в поле, обязательном для заполнении, для вашей организации показатель отсутствует, введите в поле «0» (для числовых показателей) и «-» (для текстовых).\n\n• Вводите дату непосредственно в ячейку в формате - 'ДД.ММ.ГГГГ'.\n\n• Для добавления гиперссылки дважды щелкните левой кнопкой мыши по ячейке и только после этого  вставьте скопированный элемент.\n\n• Добавьте комментарии к раскрываемым сведениям на листе «Комментарии» (при необходимости).\n"]
{"$rows_empty":18}
[{"$nulls":4},"Данный шаблон разработан в соответствии с:"]
[{"$nulls":4},"   •","Постановлением Правительства РФ от 5 июля 2013 г. № 570 (в ред. от 31.08.2016 № 876) \"О стандартах раскрытия информации теплоснабжающими организациями, теплосетевыми организациями и органами регулирования\":"]
[]
[]
[{"$nulls":5},"II. Стандарты раскрытия информации регулируемыми организациями"]
[{"$nulls":6},"15. Регулируемой организацией подлежит раскрытию информация:\nб)  о ценах (тарифах) на регулируемые товары (услуги);\nж) об условиях, на которых осуществляется поставка регулируемых товаров (оказание регулируемых услуг), и (или) об условиях договоров о подключении к централизованной системе теплоснабжения;\nз) о порядке выполнения технологических, технических и других мероприятий, связанных с подключением к централизованной системе теплоснабжения;\n16. Информация о ценах (тарифах) на регулируемые товары (услуги) содержит сведения:\nа) об утвержденных тарифах на тепловую энергию (мощность);\nб) об утвержденных тарифах на теплоноситель, поставляемый теплоснабжающими организациями потребителям, другим теплоснабжающим организациям;\nв) об утвержденных тарифах на услуги по передаче тепловой энергии, теплоносителя;\nг) об утвержденной плате за услуги по поддержанию резервной тепловой мощности при отсутствии потребления тепловой энергии;\nд) об утвержденной плате за подключение (технологическое присоединение) к системе теплоснабжения;\nе) об утвержденных тарифах на горячую воду, поставляемую теплоснабжающими организациями потребителям, другим теплоснабжающим организациям с использованием открытых систем теплоснабжения (горячего водоснабжения);\n17. В отношении каждой из групп сведений, указанных в пункте 16 настоящего документа, указывается информация:\nа) о наименовании органа регулирования, принявшего решение об установлении цен (тарифов);\nб) о реквизитах (дата и номер) такого решения;\nв) о величине установленного тарифа;\nг) о сроке действия тарифа;\nд) об источнике официального опубликования решения.\n24. Информация об условиях, на которых осуществляется поставка товаров (оказание услуг), содержит сведения об условиях публичных договоров поставок регулируемых товаров (оказания регулируемых услуг), а также сведения о договорах, заключенных в соответствии с частями 2.1 и 2.2 статьи 8 Федерального закона \"О теплоснабжении\".\n(п. 24 в ред. Постановления Правительства РФ от 31.08.2016 N 867)\n25. Информация о порядке выполнения технологических, технических и других мероприятий, связанных с подключением (технологическим присоединением) к системе теплоснабжения, содержит:\nа) форму заявки на подключение (технологическое присоединение) к системе теплоснабжения;\nб) перечень документов и сведений, представляемых одновременно с заявкой на подключение (технологическое присоединение) к системе теплоснабжения;\nв) реквизиты нормативного правового акта, регламентирующего порядок действий заявителя и регулируемой организации при подаче, приеме, обработке заявки на подключение (технологическое присоединение) к системе теплоснабжения, принятии решения и уведомлении о принятом решении;\nг) телефоны и адреса службы, ответственной за прием и обработку заявок на подключение (технологическое присоединение) к системе теплоснабжения."]
{"$rows_empty":39}
[{"$nulls":4},"Обязательность раскрытия информации и сроки раскрытия устанавливаются в соответствие с п.11. Постановления Правительства РФ от 5 июля 2013 г. N 570: "]
[]
[{"$nulls":5},"11. Регулируемые организации в течение 10 дней со дня размещения информации на своем официальном сайте в сети \"Интернет\" сообщают в орган исполнительной власти субъекта Российской Федерации в области государственного регулирования цен (тарифов) о раскрытии соответствующей информации с указанием адреса страницы сайта в сети \"Интернет\", на которой размещена эта информация.\nРегулируемые организации в течение 10 дней со дня опубликования информации в официальных печатных изданиях в случае, предусмотренном пунктом 10 настоящего документа, сообщают в орган исполнительной власти субъекта Российской Федерации в области государственного регулирования цен (тарифов) о раскрытии соответствующей информации с указанием наименования, номера и даты официального печатного издания, в котором опубликована эта информация."]
{"$rows_empty":16}
[{"$nulls":4},"Гиперссылки на листах вводите, не нарушая цвет ячейки (если копируете гиперссылку из браузера, то выполните двойной щелчок левой кнопки мыши по ячейке и только после этого можете вставить скопированный элемент)."]
[]
[]
[]
[]
[]
[null,{"$f":"IF(GetMode()=\"DEBUG\", \"Режим отладки\", \"\")","v":""}]
[null,"2017 © Общество с ограниченной ответственностью \"Элвинг\""]
[{"$nulls":4},"http://elpass.ru"]

{"sheet":"Титульный","index":1,"n_rows":45,"n_cols":5,"rows_kept":45,"merged":[[3,3,3,4],[9,3,9,4],[17,3,17,4],[22,3,22,4],[26,3,26,4],[32,3,32,4],[38,3,38,4]]}
[]
[]
[{"$nulls":3},{"$f":"Getcode()","v":"ELPASS.JKH.OPEN.INFO.PRICE.WARM"},{"$f":"Инструкция!version","v":"Версия 1.0 от 01.10.2017"}]
[{"$nulls":3},{"$f":"GetTemplateName()","v":"Показатели, подлежащие раскрытию в сфере теплоснабжения и сфере оказания услуг по передаче тепловой энергии (цены и тарифы)"}]
[]
[{"$nulls":3},"Субъект РФ","Республика Башкортостан"]
[]
[{"$nulls":3},"Отчетный период","2018"]
[]
[{"$nulls":3},"Сведения о регулируемой организации"]
[{"$nulls":3},"Полное наименование организации","ООО \"Мечел-энерго\""]
[{"$nulls":3},"Сокращенное наименование организации","ООО \"Мечел-энерго\""]
[{"$nulls":3},"ОГРН","1027700016706"]
[{"$nulls":3},"ИНН","7722245108"]
[{"$nulls":3},"КПП","025643001"]
[{"$nulls":3},"Режим налогообложения","Общий"]
[]
[{"$nulls":3},"Сведения о филиале"]
[{"$nulls":3},"Является ли данное юридическое лицо филиалом другой организации",""]
[{"$nulls":3},"Наименование филиала"]
[{"$nulls":3},"КПП филиала",""]
[]
[{"$nulls":3},"Адрес регулируемой организации"]
[{"$nulls":3},"Юридический адрес","454047, Российская Федерация, Челябинская область, г. Челябинск, ул. 2-я Павелецкая, д.14"]
[{"$nulls":3},"Почтовый адрес","453500, Республика Башкортостан, г. Белорецк, ул. Блюхер, д.1"]
[]
[{"$nulls":3},"Руководитель регулируемой организации"]
[{"$nulls":3},"Фамилия","Петров "]
[{"$nulls":3},"Имя","Евгений"]
[{"$nulls":3},"Отчество (при наличии)","Вячеславович"]
[{"$nulls":3},"Контактный телефон","8-34792-4-14-72"]
[]
[{"$nulls":3},"Главный бухгалтер регулируемой организации"]
[{"$nulls":3},"Фамилия","Якупова"]
[{"$nulls":3},"Имя","Елена"]
[{"$nulls":3},"Отчество (при наличии)","Диасовна"]
[{"$nulls":3},"Контактный телефон","8-34792-4-14-72"]
[]
[{"$nulls":3},"Должностное лицо, ответственное за составление формы"]
["L11.1","Ответственный.ФИО",null,"Фамилия","Климова"]
[{"$nulls":3},"Имя","Ольга"]
[{"$nulls":3},"Отчество (при наличии)","Дмитриевна"]
["L11.2","Ответственный.Должность",null,"Должность","ведущий экономист"]
["L11.3","Ответственный.Телефон",null,"Контактный телефон","8-34792-4-14-72"]
["L11.4","Ответственный. E-Mail",null,"e-mail","oklimova@belmk.ru"]

{"sheet":"Параметры","index":2,"n_rows":23,"n_cols":6,"rows_kept":23,"merged":[[3,3,5,5],[8,3,8,4],[9,3,9,4],[10,3,10,4],[12,3,12,4],[13,3,13,4],[15,3,15,4],[16,3,16,4],[17,3,17,4],[19,3,20,3],[21,3,21,4],[22,3,22,4]]}
[]
[]
[{"$nulls":3},{"$f":"Getcode()","v":"ELPASS.JKH.OPEN.INFO.PRICE.WARM"},null,{"$f":"Инструкция!version","v":"Версия 1.0 от 01.10.2017"}]
[{"$nulls":3},{"$f":"GetTemplateName()","v":"Показатели, подлежащие раскрытию в сфере теплоснабжения и сфере оказания услуг по передаче тепловой энергии (цены и тарифы)"}]
[]
[]
[]
[]
[{"$nulls":3},"Вид деятельности",null,"Производство тепловой энергии (мощности) не в режиме комбинированной выработки электрической и тепловой энергии источниками тепловой энергии"]
[{"$nulls":3},"Тариф",null,"Тариф на тепловую энергию (мощность)"]
[{"$nulls":3},"Укажите порядковый номер отчета",null,3]
[]
[{"$nulls":3},"Ставка тарифа",null,"Одноставочный тариф"]
[{"$nulls":3},"Учет компонентов на горячую воду"]
[]
[{"$nulls":3},"Начало очередного периода регулирования",null,"2018-07-26"]
[{"$nulls":3},"Окончание очередного периода регулирования",null,"2018-12-31"]
[{"$nulls":3},"По решению организации информация раскрыта на ее официальном сайте в сети Интернет?",null,"да"]
[]
[{"$nulls":3},"Реквизиты решения об установлении тарифа","дата","2018-07-26"]
[{"$nulls":4},"номер",128]
[{"$nulls":3},"Наименование органа испольнительной власти субъекта РФ в области государственного регулирования цен (тарифов), принявшего решение об утверждении тарифа ",null,"Государственный комитет по Республике Башкортостан"]
[{"$nulls":3},"Источник официального опубликования решения об установлении тарифа",null,"https://tariff.bashkortostan.ru/documents/active/"]

{"sheet":"Территории","index":3,"n_rows":11,"n_cols":35,"rows_kept":11,"merged":[[0,11,0,12],[2,1,2,12],[3,1,3,12],[5,1,5,3],[5,4,5,7],[5,9,5,11],[6,1,6,2],[6,4,6,6],[6,8,6,10],[7,1,9,1],[7,2,9,2],[7,3,9,3],[7,4,8,4],[7,5,8,5],[7,6,8,6],[7,7,8,7],[8,8,8,9],[8,11,8,12],[10,3,10,4]]}
[null,{"$f":"Getcode()","v":"ELPASS.JKH.OPEN.INFO.PRICE.WARM"},{"$nulls":9},{"$f":"Инструкция!version","v":"Версия 1.0 от 01.10.2017"}]
[]
[null,"Информация о территориях действия тарифов (оказания услуг) регулируемой организации "]
[null,"ООО \"Мечел-энерго\""]
[]
[null,"Территория",null,null,"Городской округ / муниципальный район",{"$nulls":4},"Муниципальное образование"]
[null,"№ п/п",null,"Наименование","№ п/п",null,null,"Наименование","№ п/п",null,null,"Наименование","ОКТМО","Имя диапазона"]
[null,null,1,"Белорецкий муниципальный район (80611101)","МР",null,1,"Белорецкий муниципальный район","МО",null,1,"Город Белорецк",80611101,null,"MO_LIST_12"]
[{"$nulls":11},"Добавить МО",{"$nulls":22},"add_MO_range"]
[{"$nulls":7},"Добавить ГО / МР",{"$nulls":22},"add_MR_range"]
[{"$nulls":3},"Добавить территорию",{"$nulls":22},"add_T_range"]

{"sheet":"Информация о тарифе","index":4,"n_rows":27,"n_cols":38,"rows_kept":27,"hidden":true,"merged":[[3,3,4,23],[5,3,5,23],[7,3,12,5],[7,6,12,8],[7,9,12,11],[7,12,12,12],[7,13,12,13],[7,14,8,15],[7,16,12,18],[7,19,7,22],[7,23,12,23],[8,19,10,20],[8,21,8,22],[9,14,12,14],[9,15,12,15],[9,21,12,21],[9,22,12,22],[11,19,12,19],[11,20,12,20],[13,3,13,5],[13,6,13,8],[13,9,13,11],[13,16,13,18],[14,3,18,3],[14,4,18,4],[14,5,18,5],[14,6,17,6],[14,7,17,7],[14,8,17,8],[14,9,16,9],[14,10,16,10],[14,11,16,11],[14,12,16,12],[14,13,16,13],[14,14,15,14],[14,15,15,15],[15,18,15,21],[17,11,17,12],[18,8,18,9],[19,5,19,6],[22,3,24,11],[26,3,33,11]]}
["f"]
[]
[{"$nulls":3},{"$f":"Getcode()","v":"ELPASS.JKH.OPEN.INFO.PRICE.WARM"},{"$nulls":19},{"$f":"Инструкция!version","v":"Версия 1.0 от 01.10.2017"}]
[{"$nulls":3},"Информация о плате за услуги по поддержанию резервной тепловой мощности при отсутствии потребления тепловой энергии"]
[]
[{"$nulls":3},"ООО \"Мечел-энерго\""]
[]
[{"$nulls":3},"Территория действия тарифа",null,null,"Система теплоснабжения",null,null,"Условия применения\nдифференциации*",null,null,"Группа \nпотребителей **","с НДС","Срок действия тарифа",null,"Вид теплоносителя",null,null,"Величина установленного тарифа",{"$nulls":3},"Примечание"]
[{"$nulls":19},"Одноставочный тариф",null,"Двухставочный тариф"]
[{"$nulls":14},"Дата начала","Дата окончания",{"$nulls":5},"Ставка за энергию, руб./Гкал","Ставка за содержание мощности, руб./Гкал в час"]
[]
[{"$nulls":19},"значение","Единицы измерения"]
[null,1]
[{"$nulls":3},1,null,null,2,null,null,"3",null,null,"4","5","6","7","8",null,null,"9","10","11",12,13]
[{"$nulls":4},"1",null,"нет","1",null,null,"1",{"$nulls":3},{"$f":"List02_StartDate","v":"2018-07-26"},{"$f":"IF(MONTH(O15)<7,\"30.06.\",\"31.12.\")&YEAR(O15)","v":"31.12.2018"},null,1]
[{"$nulls":18},"Добавить теплоноситель",{"$nulls":18},"add_COOLANT_range"]
[{"$nulls":35},"add_PERIOD_range"]
[{"$nulls":11},"Добавить строку",{"$nulls":18},"add_TARIF_range"]
[{"$nulls":8},"Добавить систему",{"$nulls":18},"add_SYSTEM_range"]
[{"$nulls":5},"Добавить территорию",{"$nulls":18},"add_TERRITORY_range"]
[]
[]
[{"$nulls":3},"* Если дифференциация отсутствует, укажите \"Не дифференцируется\".\nЕсли дифференциация по группам потребителей, укажите \"Группы потребителей\".\nЕсли тариф дифференцируется по другим признакам, укажите признак дифференциации."]
[]
[]
[]
[{"$nulls":3},"** Указываются группа потребителей, например:\n- \"Потребители всех тарифных групп\"\n- \"Население\"\n- \"Потребители всех тарифных групп, за исключеним потребителей группы \"Население\"\n- \"Организации-перепродавцы\"\n- \"Бюджетные организации\"\n- \"Прочие\"\n- и иные группы"]

{"sheet":"Тепловая энергия","index":5,"n_rows":28,"n_cols":38,"rows_kept":28,"merged":[[3,3,4,23],[5,3,5,23],[7,3,12,5],[7,6,12,8],[7,9,12,11],[7,12,12,12],[7,13,12,13],[7,14,8,15],[7,16,12,19],[7,20,7,22],[7,23,12,23],[8,20,12,20],[8,21,8,22],[9,14,12,14],[9,15,12,15],[9,21,12,21],[9,22,12,22],[13,3,13,5],[13,6,13,8],[13,9,13,11],[13,16,13,19],[14,3,19,3],[14,4,19,4],[14,5,19,5],[14,6,18,6],[14,7,18,7],[14,8,18,8],[14,9,17,9],[14,10,17,10],[14,11,17,11],[14,12,17,12],[14,13,17,13],[14,14,16,14],[14,15,16,15],[14,16,15,16],[14,17,15,17],[14,18,15,18],[16,18,16,19],[18,11,18,12],[19,8,19,9],[20,5,20,6],[23,3,25,11],[27,3,34,11]]}
["f"]
[]
[{"$nulls":3},{"$f":"Getcode()","v":"ELPASS.JKH.OPEN.INFO.PRICE.WARM"},{"$nulls":19},{"$f":"Инструкция!version","v":"Версия 1.0 от 01.10.2017"}]
[{"$nulls":3},"Информация о тарифе на тепловую энергию (мощность)"]
[]
[{"$nulls":3},"ООО \"Мечел-энерго\""]
[]
[{"$nulls":3},"Территория действия тарифа",null,null,"Система теплоснабжения",null,null,"Условия применения\nдифференциации*",null,null,"Группа \nпотребителей **","с НДС","Срок действия тарифа",null,"Вид теплоносителя",{"$nulls":3},"Величина установленного тарифа",null,null,"Примечание"]
[{"$nulls":20},"Одноставочный тариф, руб./Гкал","Двухставочный тариф"]
[{"$nulls":14},"Дата начала","Дата окончания",{"$nulls":5},"Ставка за энергию, руб./Гкал","Ставка за содержание тепловой мощности, руб./Гкал в час"]
[]
[]
[null,1]
[{"$nulls":3},1,null,null,2,null,null,"3",null,null,"4","5","6","7","8",{"$nulls":3},"9","10",11,12]
[{"$nulls":4},"1","Белорецкий муниципальный район (80611101)","нет","1",null,null,"1","не дифференцируется","прочие","нет",{"$f":"List02_StartDate","v":"2018-07-26"},{"$f":"IF(MONTH(O15)<7,\"30.06.\",\"31.12.\")&YEAR(O15)","v":"31.12.2018"},null,1,"горячая вода","через тепловую сеть",{"v":1373.34,"d":"1,373.34"},null,null,"тариф на тепловую энергию, поставляемую БФ ООО МЕЧЕЛ-ЭНЕРГО теплосетевым организациям, приобретающим тепловую энергию   с целью компенсации потерь тепловой энергии "]
[{"$nulls":19},"отпуск с коллекторов",{"v":0,"d":"0.00"}]
[{"$nulls":18},"Добавить теплоноситель",{"$nulls":18},"add_COOLANT_TE_range"]
[{"$nulls":35},"add_PERIOD_TE_range"]
[{"$nulls":11},"Добавить строку",{"$nulls":18},"add_TE_range"]
[{"$nulls":8},"Добавить систему",{"$nulls":18},"add_SYSTEM_TE_range"]
[{"$nulls":5},"Добавить территорию",{"$nulls":18},"add_TERRITORY_TE_range"]
[]
[]
[{"$nulls":3},"* Если дифференциация отсутствует, укажите \"Не дифференцируется\".\nЕсли дифференциация по группам потребителей, укажите \"Группы потребителей\".\nЕсли тариф дифференцируется по другим признакам, укажите признак дифференциации."]
[]
[]
[]
[{"$nulls":3},"** Указываются группа потребителей, например:\n- \"Потребители всех тарифных групп\"\n- \"Население\"\n- \"Потребители всех тарифных групп, за исключеним потребителей группы \"Население\"\n- \"Организации-перепродавцы\"\n- \"Бюджетные организации\"\n- \"Прочие\"\n- и иные группы"]

{"sheet":"Горячая вода (по компонентам)","index":6,"n_rows":35,"n_cols":39,"rows_kept":35,"hidden":true,"merged":[[2,2,2,6],[3,2,4,23],[5,2,5,23],[7,2,10,2],[7,3,10,3],[7,4,10,6],[7,7,10,9],[7,10,10,12],[7,13,10,15],[7,16,10,16],[7,17,10,17],[7,18,7,20],[7,21,8,22],[7,23,10,23],[8,18,10,18],[8,19,8,20],[9,19,10,19],[9,20,10,20],[9,21,10,21],[9,22,10,22],[11,4,11,6],[11,7,11,9],[11,10,11,12],[11,13,11,15],[12,2,17,2],[12,3,17,3],[12,4,16,4],[12,5,16,5],[12,6,16,6],[12,7,15,7],[12,8,15,8],[12,9,15,9],[12,10,14,10],[12,11,14,11],[12,12,14,12],[12,13,13,13],[12,14,13,14],[12,15,13,15],[12,16,13,16],[12,17,13,17],[14,15,14,16],[15,12,15,13],[16,9,16,11],[17,6,17,8],[18,2,23,2],[18,3,23,3],[18,4,22,4],[18,5,22,5],[18,6,22,6],[18,7,21,7],[18,8,21,8],[18,9,21,9],[18,10,20,10],[18,11,20,11],[18,12,20,12],[18,13,19,13],[18,14,19,14],[18,15,19,15],[18,16,19,16],[18,17,19,17],[20,15,20,16],[21,12,21,13],[22,9,22,11],[23,6,23,8],[24,3,24,23],[26,3,28,12],[30,3,32,12],[34,3,41,12]]}
[]
[]
[null,null,{"$f":"Getcode()","v":"ELPASS.JKH.OPEN.INFO.PRICE.WARM"},{"$nulls":20},{"$f":"Инструкция!version","v":"Версия 1.0 от 01.10.2017"}]
[null,null,"Информация о тарифе на горячую воду в открытых системах горячего водоснабжения с учетом компонентов*"]
[]
[null,null,"ООО \"Мечел-энерго\""]
[]
[null,null,"№\nп/п","Тариф","Поставщик",null,null,"Территория действия тарифа",null,null,"Система теплоснабжения",null,null,"Условия применения \nдифференциации***",null,null,"Группа потребителей****","с НДС","Величина установленного тарифа",null,null,"Срок действия тарифа",null,"Примечание"]
[{"$nulls":18},"Одноставочный тариф","Двухставочный тариф"]
[{"$nulls":19},"Ставка за тепловую энергию, руб./Гкал","Ставка за содержание тепловой мощности, руб./Гкал в час","Дата начала","Дата окончания"]
[]
[null,null,1,2,"3",null,null,4,null,null,5,null,null,"6",null,null,"7","8","9","10",11,12,13,14]
[null,null,1,"Компонент на теплоноситель","нет","1",null,null,"1",null,"нет","1",null,null,"1",{"$nulls":6},{"$f":"List02_StartDate","v":"2018-07-26"},{"$f":"IF(MONTH(V13)<7,\"30.06.\",\"31.12.\")&YEAR(V13)","v":"31.12.2018"}]
[{"$nulls":38},"add_PERIODK_range"]
[{"$nulls":15},"Добавить строку",{"$nulls":17},"add_STRING_COMP1_range"]
[{"$nulls":12},"Добавить систему",{"$nulls":17},"add_SYSTEMK_COMP1_range"]
[{"$nulls":9},"Добавить территорию",{"$nulls":17},"add_TERRITORYK_COMP1_range"]
[{"$nulls":6},"Добавить поставщика",{"$nulls":17},"add_PROVIDER_COMP1_range"]
[null,null,2,"Компонент на тепловую энергию","нет","1",null,null,"1",null,"нет","1",null,null,"1",{"$nulls":6},{"$f":"List02_StartDate","v":"2018-07-26"},{"$f":"IF(MONTH(V19)<7,\"30.06.\",\"31.12.\")&YEAR(V19)","v":"31.12.2018"}]
[{"$nulls":38},"add_PERIODK_range"]
[{"$nulls":15},"Добавить строку",{"$nulls":17},"add_STRING_COMP2_range"]
[{"$nulls":12},"Добавить систему",{"$nulls":17},"add_SYSTEMK_COMP2_range"]
[{"$nulls":9},"Добавить территорию",{"$nulls":17},"add_TERRITORYK_COMP2_range"]
[{"$nulls":6},"Добавить поставщика",{"$nulls":17},"add_PROVIDER_COMP2_range"]
[{"$nulls":3},"* Информация о тарифе на горячую воду в закрытой системе горячего водоснабжения (теплоснабжения) раскрывается в отчете ELPASS.JKH.OPEN.INFO.PRICE.GVS"]
[]
[{"$nulls":3},"**  При применении одноставочных тарифов:\n- для компонента на теплоноситель, руб./куб.м. (графа 9)\n- для компонента на тепловую энергию, руб./Гкал (графа 9)"]
[]
[]
[]
[{"$nulls":3},"*** Если дифференциация отсутствует, укажите \"Не дифференцируется\".\nЕсли дифференциация по группам потребителей, укажите \"Группы потребителей\".\nЕсли тариф дифференцируется по другим признакам, укажите признак дифференциации."]
[]
[]
[]
[{"$nulls":3},"**** Указываются группа потребителей, например:\n- \"Потребители всех тарифных групп\"\n- \"Население\"\n- \"Потребители всех тарифных групп, за исключеним потребителей группы \"Население\"\n- \"Организации-перепродавцы\"\n- \"Бюджетные организации\"\n- \"Прочие\"\n- и иные группы"]

{"sheet":"Плата за подключение","index":7,"n_rows":24,"n_cols":46,"rows_kept":24,"hidden":true,"merged":[[2,3,2,6],[3,3,4,25],[5,3,5,25],[7,3,13,5],[7,6,13,8],[7,9,13,11],[7,12,11,15],[7,16,11,17],[7,18,11,19],[7,20,13,20],[7,21,13,21],[7,22,13,22],[7,23,11,24],[7,25,13,25],[12,12,13,14],[12,15,13,15],[12,16,13,16],[12,17,13,17],[12,18,13,18],[12,19,13,19],[12,23,13,23],[12,24,13,24],[14,3,14,5],[14,6,14,8],[14,9,14,11],[14,12,14,14],[15,3,19,3],[15,4,19,4],[15,5,19,5],[15,6,18,6],[15,7,18,7],[15,8,18,8],[15,9,17,9],[15,10,17,10],[15,11,17,11],[15,12,16,12],[15,13,16,13],[15,14,16,14],[15,15,16,15],[15,16,16,16],[15,17,16,17],[15,18,16,18],[15,19,16,19],[15,20,16,20],[15,21,16,21],[17,14,17,15],[18,11,18,12],[19,8,19,13],[20,5,20,8],[23,3,30,15]]}
[]
[]
[{"$nulls":3},{"$f":"Getcode()","v":"ELPASS.JKH.OPEN.INFO.PRICE.WARM"},{"$nulls":21},{"$f":"Инструкция!version","v":"Версия 1.0 от 01.10.2017"}]
[{"$nulls":3},"Информация о плате за подключение к системе теплоснабжения"]
[]
[{"$nulls":3},"ООО \"Мечел-энерго\""]
[]
[{"$nulls":3},"Территория действия тарифа",null,null,"Система теплоснабжения",null,null,"Наименование источника тепловой энергии",null,null,"Подключаемая тепловая нагрузка, Гкал/ч",{"$nulls":3},"Тип прокладки тепловых сетей",null,"Диаметр тепловых сетей",null,"Группа потребителей*","С НДС","Величина платы за подключение (технологическое присоединение) к системе теплоснабжения, тыс.руб./Гкал/ч","Срок действия тарифа",null,"Примечание"]
[]
[]
[]
[]
[{"$nulls":12},"да/нет",null,null,"значение","да/нет","значение","да/нет","значение",{"$nulls":3},"Дата начала","Дата окончания"]
[]
[{"$nulls":3},1,null,null,2,null,null,3,null,null,"4",null,null,"5","6","7","8","9","10","11","12",13,14,15]
[null,1,null,null,1,null,"нет",1,null,"нет","1",null,null,"1","нет",null,"нет",null,"нет",{"$nulls":4},{"$f":"List02_StartDate","v":"2018-07-26"},{"$f":"IF(MONTH(X16)<7,\"30.06.\",\"31.12.\")&YEAR(X16)","v":"31.12.2018"}]
[{"$nulls":45},"add_PERIOD_CONNECT_range"]
[{"$nulls":14},"Добавить строку",{"$nulls":20},"add_CONNECT_range"]
[{"$nulls":11},"Добавить источник",{"$nulls":20},"add_SOURCE_CONNECT_range"]
[{"$nulls":8},"Добавить систему",{"$nulls":20},"add_SYSTEM_CONNECT_range"]
[{"$nulls":5},"Добавить территорию",{"$nulls":20},"add_TERRITORY_CONNECT_range"]
[]
[]
[{"$nulls":3},"* Указываются группа потребителей, например:\n- \"Потребители всех тарифных групп\"\n- \"Население\"\n- \"Потребители всех тарифных групп, за исключеним потребителей группы \"Население\"\n- \"Организации-перепродавцы\"\n- \"Бюджетные организации\"\n- \"Прочие\"\n- и иные группы"]

{"sheet":"Формы 12-13","index":8,"n_rows":23,"n_cols":7,"rows_kept":23,"merged":[[3,3,3,4],[5,3,5,6],[10,3,10,6],[20,3,21,6],[22,3,23,6]]}
[]
[]
[{"$nulls":3},{"$f":"Getcode()","v":"ELPASS.JKH.OPEN.INFO.PRICE.WARM"},null,null,{"$f":"Инструкция!version","v":"Версия 1.0 от 01.10.2017"}]
[]
[]
[{"$nulls":3},"Форма 12. Информация* об условиях, на которых осуществляется подставка регулируемых товаров и (или) оказание регулируемых услуг*"]
[]
[null,3,null,"Информация, подлежащая раскрытию","Значение","Ссылка на документ, размещенный в Файловом хранилище документов Системы Эльпас","Примечание"]
[{"$nulls":3},"Информация об условиях, на которых осуществляется поставка товаров (оказания услуг), содержит сведения об условиях публичных договоров поставок регулируемых товаров (оказания регулируемых услуг), а также сведения о договорах, заключенных в соответствии с частями 2.1 и 2.2 статьи 8 Федерального закона \"О теплоснабжении\" (Собрание законодательства РФ 2010, № 31, ст. 4159; 2011, №23, ст. 3263; № 50, ст. 7359; 2012, № 53, ст. 7616, 7643; 2013, № 19, ст. 2330; 2014, № 30, ст. 4218; № 42, ст. 5615; № 49 (часть VI), ст. 6913)",null,"http://eias-elpas.bashkortostan.ru/UserFile/Download?guid=c68583aa-70de-4cf8-90a3-785c5edefd56"]
[null,3]
[null,3,null,"Форма 13. Информация о порядке выполнения технологических, технических и других мероприятий, связанных с подключением (технологическим подключением) к системе теплоснабжения**"]
[]
[{"$nulls":3},"Информация, подлежащая раскрытию","Значение","Ссылка на документ, размещенный в Файловом хранилище документов Системы Эльпас","Примечание"]
[{"$nulls":3},"Форма заявки о подключении (технологическое присоединение) к системе теплоснабжения",null,"http://eias-elpas.bashkortostan.ru/UserFile/Download?guid=b72d7e61-3def-4fc8-9a8a-c8e7a65dfead"]
[{"$nulls":3},"Перечень документов, представляемых одновременно с заявкой о подключении к системе теплоснабжения","\n1.   Копию правоустанавливающих документов, подтверждающих право собственности или иное законное право заявителя на подключаемый объект или земельный участок.\n\n2.  Ситуационный план расположения подключаемого объекта с привязкой к территории населенного пункта.\n\n3.  Топографическая карта земельного участка в масштабе 1:500 (для квартальной застройке 1:2000) с указанием всех надземных и подземных коммуникаций и сооружений ( не прилагается, если заявителем является физическое лицо, осуществляющее создание (реконструкцию) объекта  индивидуального жилищного строительства).\n\n4.  Документы, подтверждающие полномочия лица, действующего от имени заявителя (в случае если заявка подается в адрес исполнителя представителем заявителя).\n\n5.     Для юридических лиц – нотариально заверенные копии учредительных документов.\n\n\n"]
[{"$nulls":3},"Реквизиты нормативного правового акта, регламентирующего порядок действий заявителя и регулируемой организации при подаче, приеме, обработке заявки о подключении к системе теплоснабжения, принятии решения и уведомлении о принятом решении","Постановление Правительства РФ от 16.04.2012 N 307\"О порядке подключения к системам теплоснабжения и о внесении изменений в некоторые акты Правительства Российской Федерации\"(вместе с \"Правилами подключения к системам теплоснабжения\")","х"]
[{"$nulls":3},"Телефоны и адреса службы, ответственной за прием и обработку заявок о подключении к системе теплоснабжения","Белорецкий филиал ООО «МЕЧЕЛ-ЭНЕРГО»\n\nПочтовый адрес: 453500, г.Белорецк, ул.Блюхера, 1\n\nГлавный инженер: Лужбин Артем Владимирович\n\nПроизводственно-технический отдел (ПТО)\n\nНачальник ПТО:  Лупаревич Валентина Алексеевна\n\nТел./факс: (34792)-4-05-56,  (34792)-4-14-72 \n\n\nЕ-mail: BF_ MechelEnergo@belmk.ru\n\n\n\n\n\n\n\n","х"]
[]
[]
[]
[{"$nulls":3},"* Указывается информация только об объемах тепловой энергии (можности), теплоносителя, отпускаемых по ценам, определенным соглашением сторон; информация о цене такого договора не раскрывается"]
[]
[{"$nulls":3},"** В соответствии с Приказом Федеральной антимонопольной службы РФ от 14 июля 2017 г. N 930/17 \"Об утверждении единых форм раскрытия информации теплоснабжающими и теплосетевыми организациями\""]

{"sheet":"Публикация информации","index":9,"n_rows":15,"n_cols":7,"rows_kept":15,"merged":[[2,3,2,4],[3,3,3,4],[5,3,6,5],[7,3,7,5],[8,3,8,6]]}
[]
[]
[{"$nulls":3},{"$f":"Getcode()","v":"ELPASS.JKH.OPEN.INFO.PRICE.WARM"},null,{"$f":"Инструкция!version","v":"Версия 1.0 от 01.10.2017"}]
[]
[]
[{"$nulls":3},"Публикация информации по решению организации на ее официальном сайте"]
[]
[{"$nulls":3},"ООО \"Мечел-энерго\""]
[null,3]
[null,3,null,"№ п/п","Описание опубликованной информации","Адрес страницы сайта, на которой размещена информация"]
[null,3,null,"1","2","3"]
[{"$nulls":3},"1","Информация о тарифах на регулируемые товары (услуги) в сфере теплоснабжения (п.16 Постановления Правительства Российской Федерации от 5 июля 2013 г. № 570 «О стандартах раскрытия информации теплоснабжающими организациями, теплосетевыми организациями и органами регулирования»)","http://mechel-energo.ru/clients/"]
[{"$nulls":3},"2","Информация об условиях, на которых осуществляется поставка регулируемых товаров и (или) оказание регулируемых услуг (п.24 Постановления Правительства Российской Федерации от 5 июля 2013 г. № 570 «О стандартах раскрытия информации теплоснабжающими организациями, теплосетевыми организациями и органами регулирования»)","http://mechel-energo.ru/clients/documents/"]
[{"$nulls":3},"3","Информация о порядке выполнения технологических, технических и других мероприятий, связанных с подключением к централизованной системе горячего водоснабжения (п.25 Постановления Правительства Российской Федерацииот 5 июля 2013 г. № 570 «О стандартах раскрытия информации теплоснабжающими организациями, теплосетевыми организациями и органами регулирования»)","http://mechel-energo.ru/disclosure_of_information/"]
[{"$nulls":4},"Добавить опубликованную информацию",null,"add_INFO_range"]

{"sheet":"Комментарий","index":10,"n_rows":11,"n_cols":4,"rows_kept":11,"merged":[[2,1,2,2],[3,1,5,2],[7,1,7,2]]}
[]
[]
[null,{"$f":"Getcode()&\"                                                                                                \"&Инструкция!version","v":"ELPASS.JKH.OPEN.INFO.PRICE.WARM                                                                                                Версия 1.0 от 01.10.2017"}]
[null,{"$f":"GetTemplateName()","v":"Показатели, подлежащие раскрытию в сфере теплоснабжения и сфере оказания услуг по передаче тепловой энергии (цены и тарифы)"}]
[]
[]
[]
[null,"Комментарии регулируемой организации"]
[null,"№","Комментарий"]
[null,1]
[null,null,"Добавить комментарий","add_COMMENTS_range"]

{"sheet":"Ошибки и предупреждения","index":11,"n_rows":4,"n_cols":4,"rows_kept":4,"merged":[[1,1,1,3]]}
[]
[null,"Результат проверки"]
[]
[null,"Ссылка","Причина","Статус"]

{"sheet":"Columns","index":12,"n_rows":0,"n_cols":0,"rows_kept":0,"hidden":true}

{"sheet":"Rows","index":13,"n_rows":119,"n_cols":46,"rows_kept":119,"hidden":true,"merged":[[3,3,7,3],[3,4,7,4],[3,5,7,5],[3,6,6,6],[3,7,6,7],[3,8,6,8],[3,9,5,9],[3,10,5,10],[3,11,5,11],[3,12,5,12],[3,13,5,13],[3,14,4,14],[3,15,4,15],[4,18,4,19],[6,11,6,12],[7,8,7,9],[9,6,12,6],[9,7,12,7],[9,8,12,8],[9,9,11,9],[9,10,11,10],[9,11,11,11],[9,12,11,12],[9,13,11,13],[9,14,10,14],[9,15,10,15],[10,18,10,19],[12,11,12,12],[14,9,16,9],[14,10,16,10],[14,11,16,11],[14,12,16,12],[14,13,16,13],[14,14,15,14],[14,15,15,15],[15,18,15,19],[18,14,19,14],[18,15,19,15],[23,4,27,4],[23,5,27,5],[23,6,27,6],[23,7,26,7],[23,8,26,8],[23,9,26,9],[23,10,25,10],[23,11,25,11],[23,12,25,12],[23,13,24,13],[23,14,24,14],[23,15,24,15],[23,16,24,16],[23,17,24,17],[25,15,25,16],[26,12,26,13],[27,9,27,11],[29,7,32,7],[29,8,32,8],[29,9,32,9],[29,10,31,10],[29,11,31,11],[29,12,31,12],[29,13,30,13],[29,14,30,14],[29,15,30,15],[29,16,30,16],[29,17,30,17],[31,15,31,16],[32,12,32,13],[34,10,36,10],[34,11,36,11],[34,12,36,12],[34,13,35,13],[34,14,35,14],[34,15,35,15],[34,16,35,16],[34,17,35,17],[36,15,36,16],[38,13,39,13],[38,14,39,14],[38,15,39,15],[38,16,39,16],[38,17,39,17],[45,3,49,3],[45,4,49,4],[45,5,49,5],[45,6,48,6],[45,7,48,7],[45,8,48,8],[45,9,47,9],[45,10,47,10],[45,11,47,11],[45,12,46,12],[45,13,46,13],[45,14,46,14],[45,15,46,15],[45,16,46,16],[45,17,46,17],[45,18,46,18],[45,19,46,19],[45,20,46,20],[45,21,46,21],[47,14,47,15],[48,11,48,12],[49,8,49,13],[51,6,54,6],[51,7,54,7],[51,8,54,8],[51,9,53,9],[51,10,53,10],[51,11,53,11],[51,12,52,12],[51,13,52,13],[51,14,52,14],[51,15,52,15],[51,16,52,16],[51,17,52,17],[51,18,52,18],[51,19,52,19],[51,20,52,20],[51,21,52,21],[53,14,53,15],[54,11,54,12],[56,12,57,12],[56,13,57,13],[56,14,57,14],[56,15,57,15],[56,16,57,16],[56,17,57,17],[56,18,57,18],[56,19,57,19],[56,20,57,20],[56,21,57,21],[64,9,66,9],[64,10,66,10],[64,11,66,11],[64,12,65,12],[64,13,65,13],[64,14,65,14],[64,15,65,15],[64,16,65,16],[64,17,65,17],[64,18,65,18],[64,19,65,19],[64,20,65,20],[64,21,65,21],[66,14,66,15],[68,3,73,3],[68,4,73,4],[68,5,73,5],[68,6,72,6],[68,7,72,7],[68,8,72,8],[68,9,71,9],[68,10,71,10],[68,11,71,11],[68,12,71,12],[68,13,71,13],[68,14,70,14],[68,15,70,15],[68,16,69,16],[68,17,69,17],[68,18,69,18],[70,18,70,19],[72,11,72,12],[73,8,73,9],[75,6,79,6],[75,7,79,7],[75,8,79,8],[75,9,78,9],[75,10,78,10],[75,11,78,11],[75,12,78,12],[75,13,78,13],[75,14,77,14],[75,15,77,15],[75,16,76,16],[75,17,76,17],[75,18,76,18],[77,18,77,19],[79,11,79,12],[81,9,84,9],[81,10,84,10],[81,11,84,11],[81,12,84,12],[81,13,84,13],[81,14,83,14],[81,15,83,15],[81,16,82,16],[81,17,82,17],[81,18,82,18],[83,18,83,19],[86,14,88,14],[86,15,88,15],[86,16,87,16],[86,17,87,17],[86,18,87,18],[88,18,88,19],[90,16,91,16],[90,17,91,17],[90,18,91,18],[93,4,97,4],[93,5,97,5],[93,6,97,6],[93,7,96,7],[93,8,96,8],[93,9,96,9],[93,10,95,10],[93,11,95,11],[93,12,95,12],[93,13,94,13],[93,14,94,14],[93,15,94,15],[93,16,94,16],[93,17,94,17],[95,15,95,16],[96,12,96,13],[97,9,97,11],[99,7,102,7],[99,8,102,8],[99,9,102,9],[99,10,101,10],[99,11,101,11],[99,12,101,12],[99,13,100,13],[99,14,100,14],[99,15,100,15],[99,16,100,16],[99,17,100,17],[101,15,101,16],[102,12,102,13],[104,10,106,10],[104,11,106,11],[104,12,106,12],[104,13,105,13],[104,14,105,14],[104,15,105,15],[104,16,105,16],[104,17,105,17],[106,15,106,16],[108,13,109,13],[108,14,109,14],[108,15,109,15],[108,16,109,16],[108,17,109,17],[113,4,114,4],[113,5,114,5],[113,6,114,6],[113,7,114,7],[114,8,114,9],[114,11,114,12],[116,1,118,1],[116,2,118,2],[116,3,118,3],[116,4,117,4],[116,5,117,5],[116,6,117,6],[116,7,117,7],[117,8,117,9],[117,11,117,12]]}
["add_COMMENTS_range","лист Комментарий"]
[]
["add_TERRITORY_range","лист Информация о тарифе"]
[{"$nulls":4},"1",null,"нет","1",null,null,"1",{"$nulls":3},{"$f":"List02_StartDate","v":"2018-07-26"},{"$f":"IF(MONTH(O4)<7,\"30.06.\",\"31.12.\")&YEAR(O4)","v":"31.12.2018"},null,1]
[{"$nulls":18},"Добавить теплоноситель",{"$nulls":18},"add_COOLANT_range"]
[{"$nulls":35},"add_PERIOD_range"]
[{"$nulls":11},"Добавить строку",{"$nulls":18},"add_TARIF_range"]
[{"$nulls":8},"Добавить систему",{"$nulls":18},"add_SYSTEM_range"]
["add_SYSTEM_range","лист Информация о тарифе"]
[{"$nulls":7},"1",null,null,"1",{"$nulls":3},{"$f":"List02_StartDate","v":"2018-07-26"},{"$f":"IF(MONTH(O10)<7,\"30.06.\",\"31.12.\")&YEAR(O10)","v":"31.12.2018"},null,1]
[{"$nulls":18},"Добавить теплоноситель",{"$nulls":18},"add_COOLANT_range"]
[{"$nulls":35},"add_PERIOD_range"]
[{"$nulls":11},"Добавить строку",{"$nulls":18},"add_TARIF_range"]
["add_TARIF_range","лист Информация о тарифе"]
[{"$nulls":10},"1",{"$nulls":3},{"$f":"List02_StartDate","v":"2018-07-26"},{"$f":"IF(MONTH(O15)<7,\"30.06.\",\"31.12.\")&YEAR(O15)","v":"31.12.2018"},null,1]
[{"$nulls":18},"Добавить теплоноситель",{"$nulls":18},"add_COOLANT_range"]
[{"$nulls":35},"add_PERIOD_range"]
["add_PERIOD_range","лист Информация о тарифе"]
[{"$nulls":15},{"$f":"IF(MONTH(O19)<7,\"30.06.\",\"31.12.\")&YEAR(O19)","v":"30.06.1900"},null,1]
[{"$nulls":18},"Добавить теплоноситель",{"$nulls":18},"add_COOLANT_range"]
["add_COOLANT_range","лист Информация о тарифе"]
[{"$nulls":17},1]
["add_PROVIDER_COMP1_range","лист Горячая вода (по компонентам)"]
[{"$nulls":5},"1",null,null,"1",null,"нет","1",null,null,"1",{"$nulls":6},{"$f":"List02_StartDate","v":"2018-07-26"},{"$f":"IF(MONTH(V24)<7,\"30.06.\",\"31.12.\")&YEAR(V24)","v":"31.12.2018"}]
[{"$nulls":38},"add_PERIODK_range"]
[{"$nulls":15},"Добавить строку",{"$nulls":17},"add_STRING_COMP1_range"]
[{"$nulls":12},"Добавить систему",{"$nulls":17},"add_SYSTEMK_COMP1_range"]
[{"$nulls":9},"Добавить территорию",{"$nulls":17},"add_TERRITORYK_COMP1_range"]
["add_TERRITORYK_COMP1_range","лист Горячая вода (по компонентам)"]
[{"$nulls":8},"1",null,"нет","1",null,null,"1",{"$nulls":6},{"$f":"List02_StartDate","v":"2018-07-26"},{"$f":"IF(MONTH(V30)<7,\"30.06.\",\"31.12.\")&YEAR(V30)","v":"31.12.2018"}]
[{"$nulls":38},"add_PERIODK_range"]
[{"$nulls":15},"Добавить строку",{"$nulls":17},"add_STRING_COMP1_range"]
[{"$nulls":12},"Добавить систему",{"$nulls":17},"add_SYSTEMK_COMP1_range"]
["add_SYSTEMK_COMP1_range","лист Горячая вода (по компонентам)"]
[{"$nulls":11},"1",null,null,"1",{"$nulls":6},{"$f":"List02_StartDate","v":"2018-07-26"},{"$f":"IF(MONTH(V35)<7,\"30.06.\",\"31.12.\")&YEAR(V35)","v":"31.12.2018"}]
[{"$nulls":38},"add_PERIODK_range"]
[{"$nulls":15},"Добавить строку",{"$nulls":17},"add_STRING_COMP1_range"]
["add_STRING_COMP1_range","лист Горячая вода (по компонентам)"]
[{"$nulls":14},"1",{"$nulls":6},{"$f":"List02_StartDate","v":"2018-07-26"},{"$f":"IF(MONTH(V39)<7,\"30.06.\",\"31.12.\")&YEAR(V39)","v":"31.12.2018"}]
[{"$nulls":38},"add_PERIODK_range"]
["add_PERIODK_range","лист Горячая вода (по компонентам)"]
[{"$nulls":22},{"$f":"IF(MONTH(V42)<7,\"30.06.\",\"31.12.\")&YEAR(V42)","v":"30.06.1900"}]
[]
[]
["add_TERRITORY_CONNECT_range","лист Тариф на подключение"]
[null,1,null,null,1,null,"нет",1,null,"нет","1",null,null,"1","нет",null,"нет",null,"нет",{"$nulls":4},{"$f":"List02_StartDate","v":"2018-07-26"},{"$f":"IF(MONTH(X46)<7,\"30.06.\",\"31.12.\")&YEAR(X46)","v":"31.12.2018"}]
[{"$nulls":45},"add_PERIOD_CONNECT_range"]
[{"$nulls":14},"Добавить строку",{"$nulls":20},"add_CONNECT_range"]
[{"$nulls":11},"Добавить источник",{"$nulls":20},"add_SOURCE_CONNECT_range"]
[{"$nulls":8},"Добавить систему",{"$nulls":20},"add_SYSTEM_CONNECT_range"]
["add_SYSTEM_CONNECT_range","лист Тариф на подключение"]
[null,1,{"$nulls":5},1,null,"нет","1",null,null,"1","нет",null,"нет",null,"нет",{"$nulls":4},{"$f":"List02_StartDate","v":"2018-07-26"},{"$f":"IF(MONTH(X52)<7,\"30.06.\",\"31.12.\")&YEAR(X52)","v":"31.12.2018"}]
[{"$nulls":45},"add_PERIOD_CONNECT_range"]
[{"$nulls":14},"Добавить строку",{"$nulls":20},"add_CONNECT_range"]
[{"$nulls":11},"Добавить источник",{"$nulls":20},"add_SOURCE_CONNECT_range"]
["add_CONNECT_range","лист Тариф на подключение"]
[null,1,{"$nulls":11},"1","нет",null,"нет",null,"нет",{"$nulls":4},{"$f":"List02_StartDate","v":"2018-07-26"},{"$f":"IF(MONTH(X57)<7,\"30.06.\",\"31.12.\")&YEAR(X57)","v":"31.12.2018"}]
[{"$nulls":45},"add_PERIOD_CONNECT_range"]
["add_PERIOD_CONNECT_range","лист Тариф на подключение"]
[null,1,{"$nulls":21},{"$f":"List02_StartDate","v":"2018-07-26"},{"$f":"IF(MONTH(X60)<7,\"30.06.\",\"31.12.\")&YEAR(X60)","v":"31.12.2018"}]
[]
["add_INFO_range","лист \"Публикация информации\""]
[]
["add_SOURCE_CONNECT_range","лист Тариф на подключение"]
[null,1,{"$nulls":8},"1",null,null,"1","нет",null,"нет",null,"нет",{"$nulls":4},{"$f":"List02_StartDate","v":"2018-07-26"},{"$f":"IF(MONTH(X65)<7,\"30.06.\",\"31.12.\")&YEAR(X65)","v":"31.12.2018"}]
[{"$nulls":45},"add_PERIOD_CONNECT_range"]
[{"$nulls":14},"Добавить строку",{"$nulls":20},"add_CONNECT_range"]
["add_TERRITORY_TE_range","лист Тепловая энергия"]
[{"$nulls":4},"1",null,"нет","1",null,null,"1",{"$nulls":3},{"$f":"List02_StartDate","v":"2018-07-26"},{"$f":"IF(MONTH(O69)<7,\"30.06.\",\"31.12.\")&YEAR(O69)","v":"31.12.2018"},null,1,null,"через тепловую сеть"]
[{"$nulls":19},"отпуск с коллекторов"]
[{"$nulls":18},"Добавить теплоноситель",{"$nulls":18},"add_COOLANT_TE_range"]
[{"$nulls":35},"add_PERIOD_TE_range"]
[{"$nulls":11},"Добавить строку",{"$nulls":18},"add_TE_range"]
[{"$nulls":8},"Добавить систему",{"$nulls":18},"add_SYSTEM_TE_range"]
["add_SYSTEM_TE_range","лист Тепловая энергия"]
[{"$nulls":7},"1",null,null,"1",{"$nulls":3},{"$f":"List02_StartDate","v":"2018-07-26"},{"$f":"IF(MONTH(O76)<7,\"30.06.\",\"31.12.\")&YEAR(O76)","v":"31.12.2018"},null,1,null,"через тепловую сеть"]
[{"$nulls":19},"отпуск с коллекторов"]
[{"$nulls":18},"Добавить теплоноситель",{"$nulls":18},"add_COOLANT_TE_range"]
[{"$nulls":35},"add_PERIOD_TE_range"]
[{"$nulls":11},"Добавить строку",{"$nulls":18},"add_TE_range"]
["add_TE_range","лист Тепловая энергия"]
[{"$nulls":10},"1",{"$nulls":3},{"$f":"List02_StartDate","v":"2018-07-26"},{"$f":"IF(MONTH(O82)<7,\"30.06.\",\"31.12.\")&YEAR(O82)","v":"31.12.2018"},null,1,null,"через тепловую сеть"]
[{"$nulls":19},"отпуск с коллекторов"]
[{"$nulls":18},"Добавить теплоноситель",{"$nulls":18},"add_COOLANT_TE_range"]
[{"$nulls":35},"add_PERIOD_TE_range"]
["add_PERIOD_TE_range","лист Тепловая энергия"]
[{"$nulls":15},{"$f":"IF(MONTH(O87)<7,\"30.06.\",\"31.12.\")&YEAR(O87)","v":"30.06.1900"},null,1,null,"через тепловую сеть"]
[{"$nulls":19},"отпуск с коллекторов"]
[{"$nulls":18},"Добавить теплоноситель",{"$nulls":18},"add_COOLANT_TE_range"]
["add_COOLANT_TE_range","лист Тепловая энергия"]
[{"$nulls":17},1,null,"через тепловую сеть"]
[{"$nulls":19},"отпуск с коллекторов"]
["add_PROVIDER_COMP2_range","лист Горячая вода (по компонентам)"]
[{"$nulls":5},"1",null,null,"1",null,"нет","1",null,null,"1",{"$nulls":6},{"$f":"List02_StartDate","v":"2018-07-26"},{"$f":"IF(MONTH(V94)<7,\"30.06.\",\"31.12.\")&YEAR(V94)","v":"31.12.2018"}]
[{"$nulls":38},"add_PERIODK_range"]
[{"$nulls":15},"Добавить строку",{"$nulls":17},"add_STRING_COMP2_range"]
[{"$nulls":12},"Добавить систему",{"$nulls":17},"add_SYSTEMK_COMP2_range"]
[{"$nulls":9},"Добавить территорию",{"$nulls":17},"add_TERRITORYK_COMP2_range"]
["add_TERRITORYK_COMP2_range","лист Горячая вода (по компонентам)"]
[{"$nulls":8},"1",null,"нет","1",null,null,"1",{"$nulls":6},{"$f":"List02_StartDate","v":"2018-07-26"},{"$f":"IF(MONTH(V100)<7,\"30.06.\",\"31.12.\")&YEAR(V100)","v":"31.12.2018"}]
[{"$nulls":38},"add_PERIODK_range"]
[{"$nulls":15},"Добавить строку",{"$nulls":17},"add_STRING_COMP2_range"]
[{"$nulls":12},"Добавить систему",{"$nulls":17},"add_SYSTEMK_COMP2_range"]
["add_SYSTEMK_COMP2_range","лист Горячая вода (по компонентам)"]
[{"$nulls":11},"1",null,null,"1",{"$nulls":6},{"$f":"List02_StartDate","v":"2018-07-26"},{"$f":"IF(MONTH(V105)<7,\"30.06.\",\"31.12.\")&YEAR(V105)","v":"31.12.2018"}]
[{"$nulls":38},"add_PERIODK_range"]
[{"$nulls":15},"Добавить строку",{"$nulls":17},"add_STRING_COMP2_range"]
["add_STRING_COMP2_range","лист Горячая вода (по компонентам)"]
[{"$nulls":14},"1",{"$nulls":6},{"$f":"List02_StartDate","v":"2018-07-26"},{"$f":"IF(MONTH(V109)<7,\"30.06.\",\"31.12.\")&YEAR(V109)","v":"31.12.2018"}]
[{"$nulls":38},"add_PERIODK_range"]
["add_MO_range"]
[{"$nulls":8},"МО",null,1]
["add_MR_range"]
[{"$nulls":4},"МР",null,1,null,"МО",null,1]
[{"$nulls":11},"Добавить МО",{"$nulls":22},"add_MO_range"]
["add_T_range"]
[{"$nulls":4},"МР",null,1,null,"МО",null,1]
[{"$nulls":11},"Добавить МО",{"$nulls":22},"add_MO_range"]
[{"$nulls":7},"Добавить ГО / МР",{"$nulls":22},"add_MR_range"]

{"sheet":"Reference","index":14,"n_rows":9,"n_cols":11,"rows_kept":9,"hidden":true}
["http://eias-elpas.bashkortostan.ru/UserFile/Download?guid=","Да/нет\n(BOOL)","Виды ставок\n(Rate)","Режим налогообложения\n(Tax)","Учет НДС\n(VAT_accounting)","Условие учета НДС\n(Condition_tax)","Территории","Виды тарифов\n(Tariff)","Единицы измерения","Вид теплоносителя","Виды деятельности \nActivity"]
[null,"да","Двухставочный тариф","Общий режим налогообложения","тариф не утверждался",{"$f":"IF(Титульный!List_01_tax_regime=\"Общий\",\"Reference_VAT_accounting0\",\"Reference_VAT_accounting1\")","v":"Reference_VAT_accounting0"},"Белорецкий муниципальный район (80611101)","Тариф на тепловую энергию (мощность)","руб./куб.м.","горячая вода","Производство тепловой энергии (мощности) в режиме комбинированной выработки электрической и тепловой энергии источниками тепловой энергии с установленной генерирующей мощностью производства электрической энергии 25 МВт и более"]
[null,"нет","Одноставочный тариф","Режим без уплаты НДС (общий режим с учетом освобождения от уплаты НДС или специальный: УСН, ЕСХН)","тариф указан без НДС",{"$f":"IF(Титульный!List_01_tax_regime=\"Общий\",\"Reference_VAT_accounting2\",\"Reference_VAT_accounting1\")","v":"Reference_VAT_accounting2"},null,"Тариф на теплоноситель","руб./Гкал в час","пар","Производство тепловой энергии (мощности) в режиме комбинированной выработки электрической и тепловой энергии источниками тепловой энергии с установленной генерирующей мощностью производства электрической энергии менее 25 МВт"]
[{"$nulls":4},"тариф указан с НДС",null,null,"Тариф на услуги по передаче теплоэнергии, теплоноситель","руб./Гкал","отборный пар, 1,2-2,5 кг/см2","Производство тепловой энергии (мощности) не в режиме комбинированной выработки электрической и тепловой энергии источниками тепловой энергии"]
[{"$nulls":7},"Плата за услуги по поддержанию резервной тепловой мощности при отсутствии потребления тепловой энергии","тыс. руб./Гкал/ч в мес","отборный пар, 2,5-7 кг/см2","Производство теплоносителя"]
[{"$nulls":7},"Плата за подключение (технологическое присоединение) к системе теплоснабжения",null,"отборный пар, 7-13 кг/см2","Передача тепловой энергии и теплоносителя"]
[{"$nulls":7},"Тариф на горячую воду, поставляемую с использованием открытых систем теплоснабжения (горячего водоснабжения)",null,"отборный пар, >13 кг/см2","Сбыт тепловой энергии и теплоносителя"]
[{"$nulls":9},"острый и редуцированный пар","Подключение к системе теплоснабжения"]
[{"$nulls":10},"Поддержание резервной тепловой мощности при отсутствии потребления тепловой энергии"]

{"sheet":"RegistryMunicipal","index":15,"n_rows":896,"n_cols":7,"rows_kept":896,"hidden":true}
["MO1","МО1_ОКТМО","ИМЯ ДИАПАЗОНА",null,"MO1","MO2","МО2_ОКТМО"]
["Абзелиловский муниципальный район","80601000","MO_LIST_2",null,"Абзелиловский муниципальный район"," Все муниципальные образования","80601000"]
["Альшеевский муниципальный район","80602000","MO_LIST_3",null,"Абзелиловский муниципальный район","Альмухаметовский сельский совет","80601404"]
["Архангельский муниципальный район","80603000","MO_LIST_4",null,"Абзелиловский муниципальный район","Амангильдинский сельский совет","80601407"]
["Аскинский муниципальный район","80604000","MO_LIST_5",null,"Абзелиловский муниципальный район","Аскаровский сельский совет","80601410"]
["Аургазинский муниципальный район","80605000","MO_LIST_6",null,"Абзелиловский муниципальный район","Баимовский сельский совет","80601413"]
["Баймакский муниципальный район","80606000","MO_LIST_7",null,"Абзелиловский муниципальный район","Бурангуловский сельский совет","80601416"]
["Бакалинский муниципальный район","80607000","MO_LIST_8",null,"Абзелиловский муниципальный район","Гусевский сельский совет","80601419"]
["Балтачевский муниципальный район","80608000","MO_LIST_9",null,"Абзелиловский муниципальный район","Давлетовский сельский совет","80601422"]
["Белебеевский муниципальный район","80609000","MO_LIST_10",null,"Абзелиловский муниципальный район","Кирдасовский сельский совет","80601425"]
["Белокатайский муниципальный район","80610000","MR_LIST_11",null,"Абзелиловский муниципальный район","Краснобашкирский сельский совет","80601428"]
["Белорецкий муниципальный район","80611000","MO_LIST_12",null,"Абзелиловский муниципальный район","Равиловский сельский совет","80601431"]
["Бижбулякский муниципальный район","80612000","MO_LIST_13",null,"Абзелиловский муниципальный район","Ташбулатовский сельский совет","80601434"]
["Бирский муниципальный район","80613000","MO_LIST_14",null,"Абзелиловский муниципальный район","Таштимеровский сельский совет","80601437"]
["Благоварский муниципальный район","80614000","MO_LIST_15",null,"Абзелиловский муниципальный район","Халиловский сельский совет","80601440"]
["Благовещенский муниципальный район","80615000","MO_LIST_16",null,"Абзелиловский муниципальный район","Хамитовский сельский совет","80601443"]
["Буздякский муниципальный район","80617000","MO_LIST_17",null,"Абзелиловский муниципальный район","Янгильский сельский совет","80601446"]
["Бураевский муниципальный район","80618000","MO_LIST_18",null,"Альшеевский муниципальный район"," Все муниципальные образования","80602000"]
["Бурзянский муниципальный район","80619000","MO_LIST_19",null,"Альшеевский муниципальный район","Абдрашитовский сельский совет","80602404"]
["Гафурийский муниципальный район","80621000","MO_LIST_20",null,"Альшеевский муниципальный район","Аксеновский сельский совет","80602406"]
["Город Агидель","80703000","MO_LIST_21",null,"Альшеевский муниципальный район","Воздвиженский сельский совет","80602413"]
["Город Кумертау","80723000","MO_LIST_22",null,"Альшеевский муниципальный район","Гайниямакский сельский совет","80602416"]
["Город Нефтекамск","80727000","MO_LIST_23",null,"Альшеевский муниципальный район","Зеленоклиновский сельский совет","80602418"]
["Город Октябрьский","80735000","MO_LIST_24",null,"Альшеевский муниципальный район","Ибраевский сельский совет","80602419"]
["Город Салават","80739000","MO_LIST_25",null,"Альшеевский муниципальный район","Казанский сельский совет","80602422"]
["Город Сибай","80743000","MO_LIST_26",null,"Альшеевский муниципальный район","Кармышевский сельский совет","80602428"]
["Город Стерлитамак","80745000","MO_LIST_27",null,"Альшеевский муниципальный район","Кипчак-Аскаровский сельский совет","80602431"]
["Город Уфа","80701000","MO_LIST_28",null,"Альшеевский муниципальный район","Кызыльский сельский совет","80602437"]
["Давлекановский муниципальный район","80622000","MO_LIST_29",null,"Альшеевский муниципальный район","Мендяновский сельский совет","80602440"]
["Дуванский муниципальный район","80623000","MO_LIST_30",null,"Альшеевский муниципальный район","Нигматуллинский сельский совет","80602443"]
["Дюртюлинский муниципальный район","80624000","MO_LIST_31",null,"Альшеевский муниципальный район","Нижнеаврюзовский сельский совет","80602446"]
["Ермекеевский муниципальный район","80625000\n","MO_LIST_32",null,"Альшеевский муниципальный район","Никифаровский сельский совет","80602449"]
["ЗАТО город Межгорье","80707000","MO_LIST_33",null,"Альшеевский муниципальный район","Раевский сельский совет","80602451"]
["Зианчуринский муниципальный район","80626000","MO_LIST_34",null,"Альшеевский муниципальный район","Слаковский сельский совет","80602455"]
["Зилаирский муниципальный район","80627000","MO_LIST_35",null,"Альшеевский муниципальный район","Ташлинский сельский совет","80602458"]
["Иглинский муниципальный район","80628000","MO_LIST_36",null,"Альшеевский муниципальный район","Трунтаишевский сельский совет","80602461"]
["Илишевский муниципальный район","80630000","MO_LIST_37",null,"Альшеевский муниципальный район","Чебенлинский сельский совет","80602464"]
["Ишимбайский муниципальный район","80631000","MO_LIST_38",null,"Альшеевский муниципальный район","Шафрановский сельский совет","80602470"]
["Калтасинский муниципальный район","80633000","MO_LIST_39",null,"Архангельский муниципальный район"," Все муниципальные образования","80603000"]
["Караидельский муниципальный район","80634000","MO_LIST_40",null,"Архангельский муниципальный район","Абзановский сельский совет","80603404"]
["Кармаскалинский муниципальный район","80635000","MO_LIST_41",null,"Архангельский муниципальный район","Архангельский сельский совет","80603410"]
["Кигинский муниципальный район","80636000","MO_LIST_42",null,"Архангельский муниципальный район","Арх-Латышский сельский совет","80603413"]
["Краснокамский муниципальный район","80637000","MO_LIST_43",null,"Архангельский муниципальный район","Бакалдинский сельский совет","80603416"]
["Кугарчинский муниципальный район","80638000","MO_LIST_44",null,"Архангельский муниципальный район","Инзерский сельский совет","80603419"]
["Кушнаренковский муниципальный район","80640000","MO_LIST_45",null,"Архангельский муниципальный район","Ирныкшинский сельский совет","80603422"]
["Куюргазинский муниципальный район","80639000","MO_LIST_46",null,"Архангельский муниципальный район","Краснозилимский сельский совет","80603425"]
["Мелеузовский муниципальный район","80641000","MO_LIST_47",null,"Архангельский муниципальный район","Краснокуртовский сельский совет","80603428"]
["Мечетлинский муниципальный район","80642000","MO_LIST_48",null,"Архангельский муниципальный район","Липовский сельский совет","80603434"]
["Мишкинский муниципальный район","80643000","MO_LIST_49",null,"Архангельский муниципальный район","Орловский сельский совет","80603440"]
["Миякинский муниципальный район","80644000","MO_LIST_50",null,"Архангельский муниципальный район","Тавакачевский сельский совет","80603446"]
["Нуримановский муниципальный район","80645000","MO_LIST_51",null,"Архангельский муниципальный район","Узунларовский сельский совет","80603450"]
["Салаватский муниципальный район","80647000","MO_LIST_52",null,"Аскинский муниципальный район"," Все муниципальные образования","80604000"]
["Стерлибашевский муниципальный район","80648000","MO_LIST_53",null,"Аскинский муниципальный район","Арбашевский сельский совет","80604402"]
["Стерлитамакский муниципальный район","80649000","MO_LIST_54",null,"Аскинский муниципальный район","Аскинский сельский совет","80604404"]
["Татышлинский муниципальный район","80650000","MO_LIST_55",null,"Аскинский муниципальный район","Евбулякский сельский совет","80604413"]
["Туймазинский муниципальный район","80651000","MO_LIST_56",null,"Аскинский муниципальный район","Казанчинский сельский совет","80604416"]
["Уфимский муниципальный район","80652000","MO_LIST_57",null,"Аскинский муниципальный район","Карткисяковский сельский совет","80604418"]
["Учалинский муниципальный район","80653000","MO_LIST_58",null,"Аскинский муниципальный район","Кашкинский сельский совет","80604419"]
["Федоровский муниципальный район","80654000","MO_LIST_59",null,"Аскинский муниципальный район","Ключевский сельский совет","80604425"]
["Хайбуллинский муниципальный район","80655000","MO_LIST_60",null,"Аскинский муниципальный район","Кубиязовский сельский совет","80604428"]
["Чекмагушевский муниципальный район","80656000","MO_LIST_61",null,"Аскинский муниципальный район","Кунгаковский сельский совет","80604431"]
["Чишминский муниципальный район","80657000","MO_LIST_62",null,"Аскинский муниципальный район","Кшлау-Елгинский сельский совет","80604437"]
["Шаранский муниципальный район","80658000","MO_LIST_63",null,"Аскинский муниципальный район","Мутабашевский сельский совет","80604440"]
["Янаульский муниципальный район","80659000","MO_LIST_64",null,"Аскинский муниципальный район","Петропавловский сельский совет","80604442"]
[{"$nulls":4},"Аскинский муниципальный район","Султанбековский сельский совет","80604443"]
[{"$nulls":4},"Аскинский муниципальный район","Урмиязовский сельский совет","80604446"]
[{"$nulls":4},"Аскинский муниципальный район","Усть-Табасский сельский совет","80604450"]
[{"$nulls":4},"Аургазинский муниципальный район"," Все муниципальные образования","80605000"]
[{"$nulls":4},"Аургазинский муниципальный район","Балыклыкульский сельский совет","80605402"]
[{"$nulls":4},"Аургазинский муниципальный район","Батыровский сельский совет","80605404"]
[{"$nulls":4},"Аургазинский муниципальный район","Бишкаинский сельский совет","80605407"]
[{"$nulls":4},"Аургазинский муниципальный район","Ибраевский сельский совет","80605410"]
[{"$nulls":4},"Аургазинский муниципальный район","Исмагиловский сельский совет","80605413"]
[{"$nulls":4},"Аургазинский муниципальный район","Ишлинский сельский совет","80605416"]
[{"$nulls":4},"Аургазинский муниципальный район","Кебячевский сельский совет","80605419"]
[{"$nulls":4},"Аургазинский муниципальный район","Меселинский сельский совет","80605422"]
[{"$nulls":4},"Аургазинский муниципальный район","Михайловский сельский совет","80605425"]
[{"$nulls":4},"Аургазинский муниципальный район","Нагадакский сельский совет","80605428"]
[{"$nulls":4},"Аургазинский муниципальный район","Новокальчировский сельский совет","80605431"]
[{"$nulls":4},"Аургазинский муниципальный район","Семенкинский сельский совет","80605434"]
[{"$nulls":4},"Аургазинский муниципальный район","Степановский сельский совет","80605437"]
[{"$nulls":4},"Аургазинский муниципальный район","Султанмуратовский сельский совет","80605440"]
[{"$nulls":4},"Аургазинский муниципальный район","Таштамакский сельский совет","80605443"]
[{"$nulls":4},"Аургазинский муниципальный район","Толбазинский сельский совет","80605446"]
[{"$nulls":4},"Аургазинский муниципальный район","Тряпинский сельский совет","80605449"]
[{"$nulls":4},"Аургазинский муниципальный район","Тукаевский сельский совет","80605452"]
[{"$nulls":4},"Аургазинский муниципальный район","Турумбетовский сельский совет","80605458"]
[{"$nulls":4},"Аургазинский муниципальный район","Уршакский сельский совет","80605461"]
[{"$nulls":4},"Аургазинский муниципальный район","Чуваш-Карамалинский сельский совет","80605472"]
[{"$nulls":4},"Баймакский муниципальный район"," Все муниципальные образования","80606000"]
[{"$nulls":4},"Баймакский муниципальный район","1-й Иткуловский сельский совет","80606416"]
[{"$nulls":4},"Баймакский муниципальный район","Абдулкаримовский сельский совет","80606404"]
[{"$nulls":4},"Баймакский муниципальный район","Акмурунский сельский совет","80606407"]
[{"$nulls":4},"Баймакский муниципальный район","Бекешевский сельский совет","80606409"]
[{"$nulls":4},"Баймакский муниципальный район","Биляловский сельский совет","80606410"]
[{"$nulls":4},"Баймакский муниципальный район","Город Баймак","80606101"]
[{"$nulls":4},"Баймакский муниципальный район","Зилаирский сельский совет","80606413"]
[{"$nulls":4},"Баймакский муниципальный район","Ишбердинский сельский совет","80606428"]
[{"$nulls":4},"Баймакский муниципальный район","Ишмурзинский сельский совет","80606422"]
[{"$nulls":4},"Баймакский муниципальный район","Ишмухаметовский сельский совет","80606425"]
[{"$nulls":4},"Баймакский муниципальный район","Кульчуровский сельский совет","80606437"]
[{"$nulls":4},"Баймакский муниципальный район","Кусеевский сельский совет","80606431"]
[{"$nulls":4},"Баймакский муниципальный район","Мерясовский сельский совет","80606438"]
[{"$nulls":4},"Баймакский муниципальный район","Мукасовский сельский совет","80606434"]
[{"$nulls":4},"Баймакский муниципальный район","Нигаматовский сельский совет","80606440"]
[{"$nulls":4},"Баймакский муниципальный район","Семеновский сельский совет","80606442"]
[{"$nulls":4},"Баймакский муниципальный район","Сибайский сельский совет","80606443"]
[{"$nulls":4},"Баймакский муниципальный район","Тавлыкаевский сельский совет","80606446"]
[{"$nulls":4},"Баймакский муниципальный район","Татлыбаевский сельский совет","80606449"]
[{"$nulls":4},"Баймакский муниципальный район","Темясовский сельский совет","80606452"]
[{"$nulls":4},"Баймакский муниципальный район","Тубинский сельский совет","80606453"]
[{"$nulls":4},"Баймакский муниципальный район","Юмашевский сельский совет","80606455"]
[{"$nulls":4},"Баймакский муниципальный район","Яратовский сельский совет","80606459"]
[{"$nulls":4},"Бакалинский муниципальный район"," Все муниципальные образования","80607000"]
[{"$nulls":4},"Бакалинский муниципальный район","Ахмановский сельский совет","80607404"]
[{"$nulls":4},"Бакалинский муниципальный район","Бакалинский сельский совет","80607407"]
[{"$nulls":4},"Бакалинский муниципальный район","Бузюровский сельский совет","80607413"]
[{"$nulls":4},"Бакалинский муниципальный район","Дияшевский сельский совет","80607419"]
[{"$nulls":4},"Бакалинский муниципальный район","Камышлытамакский сельский совет","80607425"]
[{"$nulls":4},"Бакалинский муниципальный район","Килеевский сельский совет","80607428"]
[{"$nulls":4},"Бакалинский муниципальный район","Куштиряковский сельский совет","80607431"]
[{"$nulls":4},"Бакалинский муниципальный район","Михайловский сельский совет","80607410"]
[{"$nulls":4},"Бакалинский муниципальный район","Мустафинский сельский совет","80607434"]
[{"$nulls":4},"Бакалинский муниципальный район","Новокатаевский сельский совет","80607440"]
[{"$nulls":4},"Бакалинский муниципальный район","Новоурсаевский сельский совет","80607446"]
[{"$nulls":4},"Бакалинский муниципальный район","Старокостеевский сельский совет","80607451"]
[{"$nulls":4},"Бакалинский муниципальный район","Старокуручевский сельский совет","80607449"]
[{"$nulls":4},"Бакалинский муниципальный район","Староматинский сельский совет","80607455"]
[{"$nulls":4},"Бакалинский муниципальный район","Старошарашлинский сельский совет","80607458"]
[{"$nulls":4},"Бакалинский муниципальный район","Тактагуловский сельский совет","80607461"]
[{"$nulls":4},"Бакалинский муниципальный район","Урманаевский сельский совет","80607464"]
[{"$nulls":4},"Балтачевский муниципальный район"," Все муниципальные образования","80608000"]
[{"$nulls":4},"Балтачевский муниципальный район","Богдановский сельский совет","80608404"]
[{"$nulls":4},"Балтачевский муниципальный район","Верхнеянактаевский сельский совет","80608407"]
[{"$nulls":4},"Балтачевский муниципальный район","Кундашлинский сельский совет","80608413"]
[{"$nulls":4},"Балтачевский муниципальный район","Кунтугушевский сельский совет","80608416"]
[{"$nulls":4},"Балтачевский муниципальный район","Нижнекарышевский сельский совет","80608419"]
[{"$nulls":4},"Балтачевский муниципальный район","Нижнесикиязовский сельский совет","80608422"]
[{"$nulls":4},"Балтачевский муниципальный район","Норкинский сельский совет","80608425"]
[{"$nulls":4},"Балтачевский муниципальный район","Сейтяковский сельский совет","80608428"]
[{"$nulls":4},"Балтачевский муниципальный район","Старобалтачевский сельский совет","80608431"]
[{"$nulls":4},"Балтачевский муниципальный район","Староянбаевский сельский совет","80608434"]
[{"$nulls":4},"Балтачевский муниципальный район","Тошкуровский сельский совет","80608437"]
[{"$nulls":4},"Балтачевский муниципальный район","Тучубаевский сельский совет","80608440"]
[{"$nulls":4},"Балтачевский муниципальный район","Шавьядинский сельский совет","80608441"]
[{"$nulls":4},"Балтачевский муниципальный район","Штандинский сельский совет","80608443"]
[{"$nulls":4},"Балтачевский муниципальный район","Ялангачевский сельский совет","80608448"]
[{"$nulls":4},"Белебеевский муниципальный район"," Все муниципальные образования","80609000"]
[{"$nulls":4},"Белебеевский муниципальный район","Аксаковский сельский совет","80609401"]
[{"$nulls":4},"Белебеевский муниципальный район","Анновский сельский совет","80609413"]
[{"$nulls":4},"Белебеевский муниципальный район","Баженовский сельский совет","80609402"]
[{"$nulls":4},"Белебеевский муниципальный район","Город Белебей","80609101"]
[{"$nulls":4},"Белебеевский муниципальный район","Донской сельский совет","80609404"]
[{"$nulls":4},"Белебеевский муниципальный район","Ермолкинский сельский совет","80609407"]
[{"$nulls":4},"Белебеевский муниципальный район","Знаменский сельский совет","80609410"]
[{"$nulls":4},"Белебеевский муниципальный район","Максим-Горьковский сельский совет","80609416"]
[{"$nulls":4},"Белебеевский муниципальный район","Малиновский сельский совет","80609419"]
[{"$nulls":4},"Белебеевский муниципальный район","Метевбашевский сельский совет","80609425"]
[{"$nulls":4},"Белебеевский муниципальный район","Приютовский поссовет","80609165"]
[{"$nulls":4},"Белебеевский муниципальный район","Рассветовский сельский совет","80609428"]
[{"$nulls":4},"Белебеевский муниципальный район","Семенкинский сельский совет","80609431"]
[{"$nulls":4},"Белебеевский муниципальный район","Слакбашевский сельский совет","80609434"]
[{"$nulls":4},"Белебеевский муниципальный район","Тузлукушевский сельский совет","80609437"]
[{"$nulls":4},"Белебеевский муниципальный район","Усень-Ивановский сельский совет","80609440"]
[{"$nulls":4},"Белебеевский муниципальный район","Шаровский сельский совет","80609443"]
[{"$nulls":4},"Белокатайский муниципальный район"," Все муниципальные образования","80610000"]
[{"$nulls":4},"Белокатайский муниципальный район","Атаршинский сельский совет","80610402"]
[{"$nulls":4},"Белокатайский муниципальный район","Белянковский сельский совет","80610404"]
[{"$nulls":4},"Белокатайский муниципальный район","Емашинский сельский совет","80610407"]
[{"$nulls":4},"Белокатайский муниципальный район","Карлыхановский сельский совет","80610413"]
[{"$nulls":4},"Белокатайский муниципальный район","Майгазинский сельский совет","80610416"]
[{"$nulls":4},"Белокатайский муниципальный район","Нижнеискушинский сельский совет","80610419"]
[{"$nulls":4},"Белокатайский муниципальный район","Новобелокатайский сельский совет","80610422"]
[{"$nulls":4},"Белокатайский муниципальный район","Ногушинский сельский совет","80610425"]
[{"$nulls":4},"Белокатайский муниципальный район","Старобелокатайский сельский совет","80610428"]
[{"$nulls":4},"Белокатайский муниципальный район","Тардавский сельский совет","80610431"]
[{"$nulls":4},"Белокатайский муниципальный район","Ургалинский сельский совет","80610434"]
[{"$nulls":4},"Белокатайский муниципальный район","Утяшевский сельский совет","80610437"]
[{"$nulls":4},"Белокатайский муниципальный район","Яныбаевский сельский совет","80610440"]
[{"$nulls":4},"Белорецкий муниципальный район"," Все муниципальные образования","80611000"]
[{"$nulls":4},"Белорецкий муниципальный район","Абзаковский сельский совет","80611404"]
[{"$nulls":4},"Белорецкий муниципальный район","Азикеевский сельский совет","80611407"]
[{"$nulls":4},"Белорецкий муниципальный район","Ассинский сельский совет","80611410"]
[{"$nulls":4},"Белорецкий муниципальный район","Верхнеавзянский сельский совет","80611415"]
[{"$nulls":4},"Белорецкий муниципальный район","Город Белорецк","80611101"]
[{"$nulls":4},"Белорецкий муниципальный район","Железнодорожный сельский совет","80611418"]
[{"$nulls":4},"Белорецкий муниципальный район","Зигазинский сельский совет","80611416"]
[{"$nulls":4},"Белорецкий муниципальный район","Зуяковский сельский совет","80611417"]
[{"$nulls":4},"Белорецкий муниципальный район","Инзерский сельский совет","80611420"]
[{"$nulls":4},"Белорецкий муниципальный район","Ишлинский сельский совет","80611422"]
[{"$nulls":4},"Белорецкий муниципальный район","Кагинский сельский совет","80611425"]
[{"$nulls":4},"Белорецкий муниципальный район","Ломовский сельский совет","80611427"]
[{"$nulls":4},"Белорецкий муниципальный район","Николаевский сельский совет","80611434"]
[{"$nulls":4},"Белорецкий муниципальный район","Нурский сельский совет","80611440"]
[{"$nulls":4},"Белорецкий муниципальный район","Серменевский сельский совет","80611443"]
[{"$nulls":4},"Белорецкий муниципальный район","Сосновский сельский совет","80611446"]
[{"$nulls":4},"Белорецкий муниципальный район","Тирлянский сельский совет","80611448"]
[{"$nulls":4},"Белорецкий муниципальный район","Туканский сельский совет","80611449"]
[{"$nulls":4},"Белорецкий муниципальный район","Узянский сельский совет","80611452"]
[{"$nulls":4},"Белорецкий муниципальный район","Шигаевский сельский совет","80611455"]
[{"$nulls":4},"Бижбулякский муниципальный район"," Все муниципальные образования","80612000"]
[{"$nulls":4},"Бижбулякский муниципальный район","Аитовский сельский совет","80612404"]
[{"$nulls":4},"Бижбулякский муниципальный район","Базлыкский сельский совет","80612407"]
[{"$nulls":4},"Бижбулякский муниципальный район","Бижбулякский сельский совет","80612410"]
[{"$nulls":4},"Бижбулякский муниципальный район","Биккуловский сельский совет","80612413"]
[{"$nulls":4},"Бижбулякский муниципальный район","Демский сельский совет","80612416"]
[{"$nulls":4},"Бижбулякский муниципальный район","Елбулактамакский сельский совет","80612419"]
[{"$nulls":4},"Бижбулякский муниципальный район","Зириклинский сельский совет","80612422"]
[{"$nulls":4},"Бижбулякский муниципальный район","Калининский сельский совет","80612425"]
[{"$nulls":4},"Бижбулякский муниципальный район","Каменский сельский совет","80612428"]
[{"$nulls":4},"Бижбулякский муниципальный район","Кенгер-Менеузовский сельский совет","80612431"]
[{"$nulls":4},"Бижбулякский муниципальный район","Кош-Елгинский сельский совет","80612440"]
[{"$nulls":4},"Бижбулякский муниципальный район","Михайловский сельский совет","80612442"]
[{"$nulls":4},"Бижбулякский муниципальный район","Сухореченский сельский совет","80612443"]
[{"$nulls":4},"Бирский муниципальный район"," Все муниципальные образования","80613000"]
[{"$nulls":4},"Бирский муниципальный район","Бахтыбаевский сельский совет","80613407"]
[{"$nulls":4},"Бирский муниципальный район","Березовский сельский совет","80613409"]
[{"$nulls":4},"Бирский муниципальный район","Бурновский сельский совет","80613408"]
[{"$nulls":4},"Бирский муниципальный район","Верхнелачентауский сельский совет","80613410"]
[{"$nulls":4},"Бирский муниципальный район","Город Бирск","80613101"]
[{"$nulls":4},"Бирский муниципальный район","Калинниковский сельский совет","80613416"]
[{"$nulls":4},"Бирский муниципальный район","Кусекеевский сельский совет","80613419"]
[{"$nulls":4},"Бирский муниципальный район","Маядыковский сельский совет","80613422"]
[{"$nulls":4},"Бирский муниципальный район","Осиновский сельский совет","80613425"]
[{"$nulls":4},"Бирский муниципальный район","Силантьевский сельский совет","80613431"]
[{"$nulls":4},"Бирский муниципальный район","Старобазановский сельский совет","80613434"]
[{"$nulls":4},"Бирский муниципальный район","Старопетровский сельский совет","80613437"]
[{"$nulls":4},"Бирский муниципальный район","Сусловский сельский совет","80613440"]
[{"$nulls":4},"Бирский муниципальный район","Угузевский сельский совет","80613443"]
[{"$nulls":4},"Бирский муниципальный район","Чишминский сельский совет","80613446"]
[{"$nulls":4},"Благоварский муниципальный район"," Все муниципальные образования","80614000"]
[{"$nulls":4},"Благоварский муниципальный район","Алексеевский сельский совет","80614404"]
[{"$nulls":4},"Благоварский муниципальный район","Балышлинский сельский совет","80614407"]
[{"$nulls":4},"Благоварский муниципальный район","Благоварский сельский совет","80614410"]
[{"$nulls":4},"Благоварский муниципальный район","Дмитриевский сельский совет","80614413"]
[{"$nulls":4},"Благоварский муниципальный район","Каргалинский сельский совет","80614416"]
[{"$nulls":4},"Благоварский муниципальный район","Кашкалашинский сельский совет","80614419"]
[{"$nulls":4},"Благоварский муниципальный район","Кучербаевский сельский совет","80614422"]
[{"$nulls":4},"Благоварский муниципальный район","Мирновский сельский совет","80614423"]
[{"$nulls":4},"Благоварский муниципальный район","Первомайский сельский совет","80614424"]
[{"$nulls":4},"Благоварский муниципальный район","Тановский сельский совет","80614428"]
[{"$nulls":4},"Благоварский муниципальный район","Троицкий сельский совет","80614431"]
[{"$nulls":4},"Благоварский муниципальный район","Удрякбашевский сельский совет","80614434"]
[{"$nulls":4},"Благоварский муниципальный район","Языковский сельский совет","80614437"]
[{"$nulls":4},"Благоварский муниципальный район","Ямакаевский сельский совет","80614440"]
[{"$nulls":4},"Благоварский муниципальный район","Янышевский сельский совет","80614443"]
[{"$nulls":4},"Благовещенский муниципальный район"," Все муниципальные образования","80615000"]
[{"$nulls":4},"Благовещенский муниципальный район","Бедеево-Полянский сельский совет","80615404"]
[{"$nulls":4},"Благовещенский муниципальный район","Богородский сельский совет","80615407"]
[{"$nulls":4},"Благовещенский муниципальный район","Волковский сельский совет","80615413"]
[{"$nulls":4},"Благовещенский муниципальный район","Город Благовещенск","80615101"]
[{"$nulls":4},"Благовещенский муниципальный район","Изяковский сельский совет","80615419"]
[{"$nulls":4},"Благовещенский муниципальный район","Иликовский сельский совет","80615422"]
[{"$nulls":4},"Благовещенский муниципальный район","Ильино-Полянский сельский совет","80615425"]
[{"$nulls":4},"Благовещенский муниципальный район","Николаевский сельский совет","80615428"]
[{"$nulls":4},"Благовещенский муниципальный район","Новонадеждинский сельский совет","80615431"]
[{"$nulls":4},"Благовещенский муниципальный район","Октябрьский сельский совет","80615434"]
[{"$nulls":4},"Благовещенский муниципальный район","Орловский сельский совет","80615437"]
[{"$nulls":4},"Благовещенский муниципальный район","Покровский сельский совет","80615440"]
[{"$nulls":4},"Благовещенский муниципальный район","Саннинский сельский совет","80615443"]
[{"$nulls":4},"Благовещенский муниципальный район","Старонадеждинский сельский совет","80615449"]
[{"$nulls":4},"Благовещенский муниципальный район","Тугайский сельский совет","80615453"]
[{"$nulls":4},"Благовещенский муниципальный район","Удельно-Дуванейский сельский совет","80615461"]
[{"$nulls":4},"Буздякский муниципальный район"," Все муниципальные образования","80617000"]
[{"$nulls":4},"Буздякский муниципальный район","Арслановский сельский совет","80617404"]
[{"$nulls":4},"Буздякский муниципальный район","Буздякский сельский совет","80617407"]
[{"$nulls":4},"Буздякский муниципальный район","Гафурийский сельский совет","80617410"]
[{"$nulls":4},"Буздякский муниципальный район","Канлы-Туркеевский сельский совет","80617413"]
[{"$nulls":4},"Буздякский муниципальный район","Каранский сельский совет","80617416"]
[{"$nulls":4},"Буздякский муниципальный район","Килимовский сельский совет","80617419"]
[{"$nulls":4},"Буздякский муниципальный район","Копей-Кубовский сельский совет","80617422"]
[{"$nulls":4},"Буздякский муниципальный район","Кузеевский сельский совет","80617425"]
[{"$nulls":4},"Буздякский муниципальный район","Сабаевский сельский совет","80617431"]
[{"$nulls":4},"Буздякский муниципальный район","Тавларовский сельский совет","80617437"]
[{"$nulls":4},"Буздякский муниципальный район","Тюрюшевский сельский совет","80617440"]
[{"$nulls":4},"Буздякский муниципальный район","Уртакульский сельский совет","80617446"]
[{"$nulls":4},"Бураевский муниципальный район"," Все муниципальные образования","80618000"]
[{"$nulls":4},"Бураевский муниципальный район","Азяковский сельский совет","80618404"]
[{"$nulls":4},"Бураевский муниципальный район","Бадраковский сельский совет","80618407"]
[{"$nulls":4},"Бураевский муниципальный район","Бураевский сельский совет","80618413"]
[{"$nulls":4},"Бураевский муниципальный район","Ванышевский сельский совет","80618416"]
[{"$nulls":4},"Бураевский муниципальный район","Вострецовский сельский совет","80618419"]
[{"$nulls":4},"Бураевский муниципальный район","Каинлыковский сельский совет","80618422"]
[{"$nulls":4},"Бураевский муниципальный район","Кашкалевский сельский совет","80618425"]
[{"$nulls":4},"Бураевский муниципальный район","Кузбаевский сельский совет","80618431"]
[{"$nulls":4},"Бураевский муниципальный район","Кушманаковский сельский совет","80618428"]
[{"$nulls":4},"Бураевский муниципальный район","Тазларовский сельский совет","80618437"]
[{"$nulls":4},"Бураевский муниципальный район","Тангатаровский сельский совет","80618440"]
[{"$nulls":4},"Бураевский муниципальный район","Тепляковский сельский совет","80618443"]
[{"$nulls":4},"Бураевский муниципальный район","Челкаковский сельский совет","80618446"]
[{"$nulls":4},"Бурзянский муниципальный район"," Все муниципальные образования","80619000"]
[{"$nulls":4},"Бурзянский муниципальный район","Аскаровский сельский совет","80619404"]
[{"$nulls":4},"Бурзянский муниципальный район","Атиковский сельский совет","80619407"]
[{"$nulls":4},"Бурзянский муниципальный район","Байгазинский сельский совет","80619409"]
[{"$nulls":4},"Бурзянский муниципальный район","Байназаровский сельский совет","80619410"]
[{"$nulls":4},"Бурзянский муниципальный район","Галиакберовский сельский совет","80619413"]
[{"$nulls":4},"Бурзянский муниципальный район","Иргизлинский сельский совет","80619416"]
[{"$nulls":4},"Бурзянский муниципальный район","Киекбаевский сельский совет","80619419"]
[{"$nulls":4},"Бурзянский муниципальный район","Кипчакский сельский совет","80619420"]
[{"$nulls":4},"Бурзянский муниципальный район","Кулганинский сельский совет","80619440"]
[{"$nulls":4},"Бурзянский муниципальный район","Старомунасиповский сельский совет","80619422"]
[{"$nulls":4},"Бурзянский муниципальный район","Старосубхангуловский сельский совет","80619425"]
[{"$nulls":4},"Бурзянский муниципальный район","Тимировский сельский совет","80619430"]
[{"$nulls":4},"Гафурийский муниципальный район"," Все муниципальные образования","80621000"]
[{"$nulls":4},"Гафурийский муниципальный район","Белоозерский сельский совет","80621407"]
[{"$nulls":4},"Гафурийский муниципальный район","Бельский сельский совет","80621410"]
[{"$nulls":4},"Гафурийский муниципальный район","Бурлинский сельский совет","80621413"]
[{"$nulls":4},"Гафурийский муниципальный район","Буруновский сельский совет","80621414"]
[{"$nulls":4},"Гафурийский муниципальный район","Зилим-Карановский сельский совет","80621416"]
[{"$nulls":4},"Гафурийский муниципальный район","Имендяшевский сельский совет","80621419"]
[{"$nulls":4},"Гафурийский муниципальный район","Ковардинский сельский совет","80621422"]
[{"$nulls":4},"Гафурийский муниципальный район","Красноусольский сельский совет","80621423"]
[{"$nulls":4},"Гафурийский муниципальный район","Мраковский сельский совет","80621425"]
[{"$nulls":4},"Гафурийский муниципальный район","Саитбабинский сельский совет","80621428"]
[{"$nulls":4},"Гафурийский муниципальный район","Табынский сельский совет","80621431"]
[{"$nulls":4},"Гафурийский муниципальный район","Ташбукановский сельский совет","80621434"]
[{"$nulls":4},"Гафурийский муниципальный район","Ташлинский сельский совет","80621437"]
[{"$nulls":4},"Гафурийский муниципальный район","Толпаровский сельский совет","80621440"]
[{"$nulls":4},"Гафурийский муниципальный район","Утяковский сельский совет","80621443"]
[{"$nulls":4},"Гафурийский муниципальный район","Янгискаинский сельский совет","80621446"]
[{"$nulls":4},"Город Агидель","Город Агидель","80703000"]
[{"$nulls":4},"Город Кумертау","Город Кумертау","80723000"]
[{"$nulls":4},"Город Нефтекамск","Город Нефтекамск","80727000"]
[{"$nulls":4},"Город Октябрьский","Город Октябрьский","80735000"]
[{"$nulls":4},"Город Салават","Город Салават","80739000"]
[{"$nulls":4},"Город Сибай","Город Сибай","80743000"]
[{"$nulls":4},"Город Стерлитамак","Город Стерлитамак","80745000"]
[{"$nulls":4},"Город Уфа","Город Уфа","80701000"]
[{"$nulls":4},"Давлекановский муниципальный район"," Все муниципальные образования","80622000"]
[{"$nulls":4},"Давлекановский муниципальный район","Алгинский сельский совет","80622404"]
[{"$nulls":4},"Давлекановский муниципальный район","Бик-Кармалинский сельский совет","80622410"]
[{"$nulls":4},"Давлекановский муниципальный район","Город Давлеканово","80622101"]
[{"$nulls":4},"Давлекановский муниципальный район","Ивановский сельский совет","80622413"]
[{"$nulls":4},"Давлекановский муниципальный район","Имай-Кармалинский сельский совет","80622416"]
[{"$nulls":4},"Давлекановский муниципальный район","Кадыргуловский сельский совет","80622419"]
[{"$nulls":4},"Давлекановский муниципальный район","Казангуловский сельский совет","80622422"]
[{"$nulls":4},"Давлекановский муниципальный район","Кидрячевский сельский совет","80622425"]
[{"$nulls":4},"Давлекановский муниципальный район","Курманкеевский сельский совет","80622428"]
[{"$nulls":4},"Давлекановский муниципальный район","Микяшевский сельский совет","80622431"]
[{"$nulls":4},"Давлекановский муниципальный район","Поляковский сельский совет","80622434"]
[{"$nulls":4},"Давлекановский муниципальный район","Раевский сельский совет","80622437"]
[{"$nulls":4},"Давлекановский муниципальный район","Рассветовский сельский совет","80622440"]
[{"$nulls":4},"Давлекановский муниципальный район","Сергиопольский сельский совет","80622443"]
[{"$nulls":4},"Давлекановский муниципальный район","Соколовский сельский совет","80622444"]
[{"$nulls":4},"Давлекановский муниципальный район","Чуюнчинский сельский совет","80622446"]
[{"$nulls":4},"Давлекановский муниципальный район","Шестаевский сельский совет","80622449"]
[{"$nulls":4},"Дуванский муниципальный район"," Все муниципальные образования","80623000"]
[{"$nulls":4},"Дуванский муниципальный район","Ариевский сельский совет","80623404"]
[{"$nulls":4},"Дуванский муниципальный район","Вознесенский сельский совет","80623406"]
[{"$nulls":4},"Дуванский муниципальный район","Дуванский сельский совет","80623407"]
[{"$nulls":4},"Дуванский муниципальный район","Заимкинский сельский совет","80623413"]
[{"$nulls":4},"Дуванский муниципальный район","Лемазинский сельский совет","80623419"]
[{"$nulls":4},"Дуванский муниципальный район","Месягутовский сельский совет","80623422"]
[{"$nulls":4},"Дуванский муниципальный район","Метелинский сельский совет","80623425"]
[{"$nulls":4},"Дуванский муниципальный район","Михайловский сельский совет","80623428"]
[{"$nulls":4},"Дуванский муниципальный район","Рухтинский сельский совет","80623431"]
[{"$nulls":4},"Дуванский муниципальный район","Сальевский сельский совет","80623433"]
[{"$nulls":4},"Дуванский муниципальный район","Сикиязский сельский совет","80623434"]
[{"$nulls":4},"Дуванский муниципальный район","Улькундинский сельский совет","80623440"]
[{"$nulls":4},"Дуванский муниципальный район","Ярославский сельский совет","80623443"]
[{"$nulls":4},"Дюртюлинский муниципальный район"," Все муниципальные образования","80624000"]
[{"$nulls":4},"Дюртюлинский муниципальный район","Ангасякский сельский совет","80624404"]
[{"$nulls":4},"Дюртюлинский муниципальный район","Асяновский сельский совет","80624407"]
[{"$nulls":4},"Дюртюлинский муниципальный район","Город Дюртюли","80624101"]
[{"$nulls":4},"Дюртюлинский муниципальный район","Исмаиловский сельский совет","80624410"]
[{"$nulls":4},"Дюртюлинский муниципальный район","Куккуяновский сельский совет","80624413"]
[{"$nulls":4},"Дюртюлинский муниципальный район","Маядыковский сельский совет","80624416"]
[{"$nulls":4},"Дюртюлинский муниципальный район","Московский сельский совет","80624422"]
[{"$nulls":4},"Дюртюлинский муниципальный район","Семилетовский сельский совет","80624430"]
[{"$nulls":4},"Дюртюлинский муниципальный район","Старобаишевский сельский совет","80624431"]
[{"$nulls":4},"Дюртюлинский муниципальный район","Староянтузовский сельский совет","80624434"]
[{"$nulls":4},"Дюртюлинский муниципальный район","Суккуловский сельский совет","80624437"]
[{"$nulls":4},"Дюртюлинский муниципальный район","Таймурзинский сельский совет","80624440"]
[{"$nulls":4},"Дюртюлинский муниципальный район","Такарликовский сельский совет","80624443"]
[{"$nulls":4},"Дюртюлинский муниципальный район","Учпилинский сельский совет","80624447"]
[{"$nulls":4},"Дюртюлинский муниципальный район","Черлаковский сельский совет","80624449"]
[{"$nulls":4},"Ермекеевский муниципальный район"," Все муниципальные образования","80625000"]
[{"$nulls":4},"Ермекеевский муниципальный район","Бекетовский сельский совет","80625402"]
[{"$nulls":4},"Ермекеевский муниципальный район","Восьмомартовский сельский совет","80625404"]
[{"$nulls":4},"Ермекеевский муниципальный район","Ермекеевский сельский совет","80625407"]
[{"$nulls":4},"Ермекеевский муниципальный район","Кызыл-Ярский сельский совет","80625411"]
[{"$nulls":4},"Ермекеевский муниципальный район","Нижнеулу-Елгинский сельский совет","80625413"]
[{"$nulls":4},"Ермекеевский муниципальный район","Рятамакский сельский совет","80625416"]
[{"$nulls":4},"Ермекеевский муниципальный район","Спартакский сельский совет","80625422"]
[{"$nulls":4},"Ермекеевский муниципальный район","Среднекарамалинский сельский совет","80625425"]
[{"$nulls":4},"Ермекеевский муниципальный район","Старосуллинский сельский совет","80625428"]
[{"$nulls":4},"Ермекеевский муниципальный район","Старотураевский сельский совет","80625431"]
[{"$nulls":4},"Ермекеевский муниципальный район","Суккуловский сельский совет","80625434"]
[{"$nulls":4},"Ермекеевский муниципальный район","Тарказинский сельский совет","80625437"]
[{"$nulls":4},"Ермекеевский муниципальный район","Усман-Ташлинский сельский совет","80625440"]
[{"$nulls":4},"ЗАТО город Межгорье","ЗАТО город Межгорье","80707000"]
[{"$nulls":4},"Зианчуринский муниципальный район"," Все муниципальные образования","80626000"]
[{"$nulls":4},"Зианчуринский муниципальный район","Абзановский сельский совет","80626404"]
[{"$nulls":4},"Зианчуринский муниципальный район","Абуляисовский сельский совет","80626405"]
[{"$nulls":4},"Зианчуринский муниципальный район","Байдавлетовский сельский совет","80626407"]
[{"$nulls":4},"Зианчуринский муниципальный район","Баишевский сельский совет","80626406"]
[{"$nulls":4},"Зианчуринский муниципальный район","Бикбауский сельский совет","80626410"]
[{"$nulls":4},"Зианчуринский муниципальный район","Исянгуловский сельский совет","80626416"]
[{"$nulls":4},"Зианчуринский муниципальный район","Казанбулакский сельский совет","80626419"]
[{"$nulls":4},"Зианчуринский муниципальный район","Муйнакский сельский совет","80626422"]
[{"$nulls":4},"Зианчуринский муниципальный район","Новопетровский сельский совет","80626425"]
[{"$nulls":4},"Зианчуринский муниципальный район","Новочебенкинский сельский совет","80626428"]
[{"$nulls":4},"Зианчуринский муниципальный район","Сакмарский сельский совет","80626431"]
[{"$nulls":4},"Зианчуринский муниципальный район","Суренский сельский совет","80626434"]
[{"$nulls":4},"Зианчуринский муниципальный район","Тазларовский сельский совет","80626437"]
[{"$nulls":4},"Зианчуринский муниципальный район","Утягуловский сельский совет","80626440"]
[{"$nulls":4},"Зианчуринский муниципальный район","Яныбаевский сельский совет","80626443"]
[{"$nulls":4},"Зилаирский муниципальный район"," Все муниципальные образования","80627000"]
[{"$nulls":4},"Зилаирский муниципальный район","Бердяшский сельский совет","80627404"]
[{"$nulls":4},"Зилаирский муниципальный район","Верхнегалеевский сельский совет","80627410"]
[{"$nulls":4},"Зилаирский муниципальный район","Дмитриевский сельский совет","80627413"]
[{"$nulls":4},"Зилаирский муниципальный район","Зилаирский сельский совет","80627416"]
[{"$nulls":4},"Зилаирский муниципальный район","Ивано-Кувалатский сельский совет","80627419"]
[{"$nulls":4},"Зилаирский муниципальный район","Кананикольский сельский совет","80627421"]
[{"$nulls":4},"Зилаирский муниципальный район","Канзафаровский сельский совет","80627422"]
[{"$nulls":4},"Зилаирский муниципальный район","Кашкаровский сельский совет","80627423"]
[{"$nulls":4},"Зилаирский муниципальный район","Матраевский сельский совет","80627425"]
[{"$nulls":4},"Зилаирский муниципальный район","Сабыровский сельский совет","80627432"]
[{"$nulls":4},"Зилаирский муниципальный район","Уркасский сельский совет","80627434"]
[{"$nulls":4},"Зилаирский муниципальный район","Юлдыбаевский сельский совет","80627436"]
[{"$nulls":4},"Зилаирский муниципальный район","Ямансазский сельский совет","80627442"]
[{"$nulls":4},"Иглинский муниципальный район"," Все муниципальные образования","80628000"]
[{"$nulls":4},"Иглинский муниципальный район","Акбердинский сельский совет","80628403"]
[{"$nulls":4},"Иглинский муниципальный район","Ауструмский сельский совет","80628405"]
[{"$nulls":4},"Иглинский муниципальный район","Балтийский сельский совет","80628410"]
[{"$nulls":4},"Иглинский муниципальный район","Ивано-Казанский сельский совет","80628415"]
[{"$nulls":4},"Иглинский муниципальный район","Иглинский сельский совет","80628416"]
[{"$nulls":4},"Иглинский муниципальный район","Калтымановский сельский совет","80628420"]
[{"$nulls":4},"Иглинский муниципальный район","Кальтовский сельский совет","80628425"]
[{"$nulls":4},"Иглинский муниципальный район","Красновосходский сельский совет","80628430"]
[{"$nulls":4},"Иглинский муниципальный район","Кудеевский сельский совет","80628432"]
[{"$nulls":4},"Иглинский муниципальный район","Лемезинский сельский совет","80628435"]
[{"$nulls":4},"Иглинский муниципальный район","Майский сельский совет","80628440"]
[{"$nulls":4},"Иглинский муниципальный район","Надеждинский сельский совет","80628445"]
[{"$nulls":4},"Иглинский муниципальный район","Охлебининский сельский совет","80628450"]
[{"$nulls":4},"Иглинский муниципальный район","Тавтимановский сельский совет","80628455"]
[{"$nulls":4},"Иглинский муниципальный район","Турбаслинский сельский совет","80628460"]
[{"$nulls":4},"Иглинский муниципальный район","Уктеевский сельский совет","80628470"]
[{"$nulls":4},"Иглинский муниципальный район","Улу-Телякский сельский совет","80628472"]
[{"$nulls":4},"Иглинский муниципальный район","Урманский сельский совет","80628474"]
[{"$nulls":4},"Иглинский муниципальный район","Чуваш-Кубовский сельский совет","80628480"]
[{"$nulls":4},"Илишевский муниципальный район"," Все муниципальные образования","80630000"]
[{"$nulls":4},"Илишевский муниципальный район","Аккузевский сельский совет","80630404"]
[{"$nulls":4},"Илишевский муниципальный район","Андреевский сельский совет","80630408"]
[{"$nulls":4},"Илишевский муниципальный район","Базитамакский сельский совет","80630412"]
[{"$nulls":4},"Илишевский муниципальный район","Бишкураевский сельский совет","80630416"]
[{"$nulls":4},"Илишевский муниципальный район","Дюмеевский сельский совет","80630424"]
[{"$nulls":4},"Илишевский муниципальный район","Игметовский сельский совет","80630426"]
[{"$nulls":4},"Илишевский муниципальный район","Исаметовский сельский совет","80630428"]
[{"$nulls":4},"Илишевский муниципальный район","Исанбаевский сельский совет","80630432"]
[{"$nulls":4},"Илишевский муниципальный район","Итеевский сельский совет","80630436"]
[{"$nulls":4},"Илишевский муниципальный район","Ишкаровский сельский совет","80630440"]
[{"$nulls":4},"Илишевский муниципальный район","Кадыровский сельский совет","80630444"]
[{"$nulls":4},"Илишевский муниципальный район","Карабашевский сельский совет","80630448"]
[{"$nulls":4},"Илишевский муниципальный район","Кужбахтинский сельский совет","80630452"]
[{"$nulls":4},"Илишевский муниципальный район","Новомедведевский сельский совет","80630456"]
[{"$nulls":4},"Илишевский муниципальный район","Рсаевский сельский совет","80630460"]
[{"$nulls":4},"Илишевский муниципальный район","Старокуктовский сельский совет","80630464"]
[{"$nulls":4},"Илишевский муниципальный район","Сюльтинский сельский совет","80630468"]
[{"$nulls":4},"Илишевский муниципальный район","Урметовский сельский совет","80630472"]
[{"$nulls":4},"Илишевский муниципальный район","Черекулевский сельский совет","80630476"]
[{"$nulls":4},"Илишевский муниципальный район","Юнновский сельский совет","80630478"]
[{"$nulls":4},"Илишевский муниципальный район","Ябалаковский сельский совет","80630480"]
[{"$nulls":4},"Илишевский муниципальный район","Яркеевский сельский совет","80630484"]
[{"$nulls":4},"Ишимбайский муниципальный район"," Все муниципальные образования","80631000"]
[{"$nulls":4},"Ишимбайский муниципальный район","Арметовский сельский совет","80631405"]
[{"$nulls":4},"Ишимбайский муниципальный район","Байгузинский сельский совет","80631415"]
[{"$nulls":4},"Ишимбайский муниципальный район","Верхоторский сельский совет","80631425"]
[{"$nulls":4},"Ишимбайский муниципальный район","Город Ишимбай","80631101"]
[{"$nulls":4},"Ишимбайский муниципальный район","Иткуловский сельский совет","80631430"]
[{"$nulls":4},"Ишимбайский муниципальный район","Ишеевский сельский совет","80631435"]
[{"$nulls":4},"Ишимбайский муниципальный район","Кузяновский сельский совет","80631440"]
[{"$nulls":4},"Ишимбайский муниципальный район","Кулгунинский сельский совет","80631445"]
[{"$nulls":4},"Ишимбайский муниципальный район","Макаровский сельский совет","80631450"]
[{"$nulls":4},"Ишимбайский муниципальный район","Петровский сельский совет","80631455"]
[{"$nulls":4},"Ишимбайский муниципальный район","Сайрановский сельский совет","80631460"]
[{"$nulls":4},"Ишимбайский муниципальный район","Скворчихинский сельский совет","80631470"]
[{"$nulls":4},"Ишимбайский муниципальный район","Урман-Бишкадакский сельский совет","80631475"]
[{"$nulls":4},"Ишимбайский муниципальный район","Янурусовский сельский совет","80631480"]
[{"$nulls":4},"Калтасинский муниципальный район"," Все муниципальные образования","80633000"]
[{"$nulls":4},"Калтасинский муниципальный район","Амзибашевский сельский совет","80633403"]
[{"$nulls":4},"Калтасинский муниципальный район","Большекачаковский сельский совет","80633405"]
[{"$nulls":4},"Калтасинский муниципальный район","Калегинский сельский совет","80633415"]
[{"$nulls":4},"Калтасинский муниципальный район","Калмиябашевский сельский совет","80633420"]
[{"$nulls":4},"Калтасинский муниципальный район","Калтасинский сельский совет","80633425"]
[{"$nulls":4},"Калтасинский муниципальный район","Кельтеевский сельский совет","80633430"]
[{"$nulls":4},"Калтасинский муниципальный район","Краснохолмский сельский совет","80633447"]
[{"$nulls":4},"Калтасинский муниципальный район","Нижнекачмашевский сельский совет","80633445"]
[{"$nulls":4},"Калтасинский муниципальный район","Новокильбахтинский сельский совет","80633446"]
[{"$nulls":4},"Калтасинский муниципальный район","Старояшевский сельский совет","80633452"]
[{"$nulls":4},"Калтасинский муниципальный район","Тюльдинский сельский совет","80633450"]
[{"$nulls":4},"Караидельский муниципальный район"," Все муниципальные образования","80634000"]
[{"$nulls":4},"Караидельский муниципальный район","Артакульский сельский совет","80634404"]
[{"$nulls":4},"Караидельский муниципальный район","Байкибашевский сельский совет","80634412"]
[{"$nulls":4},"Караидельский муниципальный район","Байкинский сельский совет","80634416"]
[{"$nulls":4},"Караидельский муниципальный район","Верхнесуянский сельский совет","80634424"]
[{"$nulls":4},"Караидельский муниципальный район","Караидельский сельский совет","80634432"]
[{"$nulls":4},"Караидельский муниципальный район","Караярский сельский совет","80634436"]
[{"$nulls":4},"Караидельский муниципальный район","Кирзинский сельский совет","80634440"]
[{"$nulls":4},"Караидельский муниципальный район","Куртлыкульский сельский совет","80634444"]
[{"$nulls":4},"Караидельский муниципальный район","Магинский сельский совет","80634445"]
[{"$nulls":4},"Караидельский муниципальный район","Новобердяшский сельский совет","80634452"]
[{"$nulls":4},"Караидельский муниципальный район","Новомуллакаевский сельский совет","80634456"]
[{"$nulls":4},"Караидельский муниципальный район","Озеркинский сельский совет","80634460"]
[{"$nulls":4},"Караидельский муниципальный район","Подлубовский сельский совет","80634464"]
[{"$nulls":4},"Караидельский муниципальный район","Староакбуляковский сельский совет","80634472"]
[{"$nulls":4},"Караидельский муниципальный район","Ургушевский сельский совет","80634480"]
[{"$nulls":4},"Караидельский муниципальный район","Урюш-Битуллинский сельский совет","80634484"]
[{"$nulls":4},"Караидельский муниципальный район","Явгильдинский сельский совет","80634488"]
[{"$nulls":4},"Кармаскалинский муниципальный район"," Все муниципальные образования","80635000"]
[{"$nulls":4},"Кармаскалинский муниципальный район","Адзитаровский сельский совет","80635405"]
[{"$nulls":4},"Кармаскалинский муниципальный район","Бузовьязовский сельский совет","80635415"]
[{"$nulls":4},"Кармаскалинский муниципальный район","Ефремкинский сельский совет","80635420"]
[{"$nulls":4},"Кармаскалинский муниципальный район","Кабаковский сельский совет","80635423"]
[{"$nulls":4},"Кармаскалинский муниципальный район","Камышлинский сельский совет","80635425"]
[{"$nulls":4},"Кармаскалинский муниципальный район","Карламанский сельский совет","80635430"]
[{"$nulls":4},"Кармаскалинский муниципальный район","Кармаскалинский сельский совет","80635435"]
[{"$nulls":4},"Кармаскалинский муниципальный район","Николаевский сельский совет","80635440"]
[{"$nulls":4},"Кармаскалинский муниципальный район","Новокиешкинский сельский совет","80635445"]
[{"$nulls":4},"Кармаскалинский муниципальный район","Подлубовский сельский совет","80635450"]
[{"$nulls":4},"Кармаскалинский муниципальный район","Прибельский сельский совет","80635451"]
[{"$nulls":4},"Кармаскалинский муниципальный район","Савалеевский сельский совет","80635455"]
[{"$nulls":4},"Кармаскалинский муниципальный район","Сахаевский сельский совет","80635475"]
[{"$nulls":4},"Кармаскалинский муниципальный район","Старобабичевский сельский совет","80635465"]
[{"$nulls":4},"Кармаскалинский муниципальный район","Старомусинский сельский совет","80635470"]
[{"$nulls":4},"Кармаскалинский муниципальный район","Шаймуратовский сельский совет","80635480"]
[{"$nulls":4},"Кигинский муниципальный район"," Все муниципальные образования","80636000"]
[{"$nulls":4},"Кигинский муниципальный район","Абзаевский сельский совет","80636405"]
[{"$nulls":4},"Кигинский муниципальный район","Арслановский сельский совет","80636410"]
[{"$nulls":4},"Кигинский муниципальный район","Верхнекигинский сельский совет","80636415"]
[{"$nulls":4},"Кигинский муниципальный район","Душанбековский сельский совет","80636425"]
[{"$nulls":4},"Кигинский муниципальный район","Еланлинский сельский совет","80636420"]
[{"$nulls":4},"Кигинский муниципальный район","Ибраевский сельский совет","80636430"]
[{"$nulls":4},"Кигинский муниципальный район","Кандаковский сельский совет","80636435"]
[{"$nulls":4},"Кигинский муниципальный район","Леузинский сельский совет","80636440"]
[{"$nulls":4},"Кигинский муниципальный район","Нижнекигинский сельский совет","80636445"]
[{"$nulls":4},"Краснокамский муниципальный район"," Все муниципальные образования","80637000"]
[{"$nulls":4},"Краснокамский муниципальный район","Арлановский сельский совет","80637405"]
[{"$nulls":4},"Краснокамский муниципальный район","Кариевский сельский совет","80637410"]
[{"$nulls":4},"Краснокамский муниципальный район","Куяновский сельский совет","80637412"]
[{"$nulls":4},"Краснокамский муниципальный район","Музяковский сельский совет","80637415"]
[{"$nulls":4},"Краснокамский муниципальный район","Николо-Березовский сельский совет","80637421"]
[{"$nulls":4},"Краснокамский муниципальный район","Никольский сельский совет","80637420"]
[{"$nulls":4},"Краснокамский муниципальный район","Новобуринский сельский совет","80637425"]
[{"$nulls":4},"Краснокамский муниципальный район","Новокабановский сельский совет","80637430"]
[{"$nulls":4},"Краснокамский муниципальный район","Новокаинлыковский сельский совет","80637435"]
[{"$nulls":4},"Краснокамский муниципальный район","Новонагаевский сельский совет","80637440"]
[{"$nulls":4},"Краснокамский муниципальный район","Новоянзигитовский сельский совет","80637461"]
[{"$nulls":4},"Краснокамский муниципальный район","Раздольевский сельский совет","80637443"]
[{"$nulls":4},"Краснокамский муниципальный район","Саузбашевский сельский совет","80637450"]
[{"$nulls":4},"Краснокамский муниципальный район","Шушнурский сельский совет","80637465"]
[{"$nulls":4},"Кугарчинский муниципальный район"," Все муниципальные образования","80638000"]
[{"$nulls":4},"Кугарчинский муниципальный район","Волостновский сельский совет","80638405"]
[{"$nulls":4},"Кугарчинский муниципальный район","Зареченский сельский совет","80638410"]
[{"$nulls":4},"Кугарчинский муниципальный район","Ибраевский сельский совет","80638415"]
[{"$nulls":4},"Кугарчинский муниципальный район","Ижбердинский сельский совет","80638420"]
[{"$nulls":4},"Кугарчинский муниципальный район","Иртюбякский сельский совет","80638425"]
[{"$nulls":4},"Кугарчинский муниципальный район","Исимовский сельский совет","80638430"]
[{"$nulls":4},"Кугарчинский муниципальный район","Кугарчинский сельский совет","80638440"]
[{"$nulls":4},"Кугарчинский муниципальный район","Максютовский сельский совет","80638445"]
[{"$nulls":4},"Кугарчинский муниципальный район","Мраковский сельский совет","80638450"]
[{"$nulls":4},"Кугарчинский муниципальный район","Нижнебиккузинский сельский совет","80638455"]
[{"$nulls":4},"Кугарчинский муниципальный район","Новопетровский сельский совет","80638460"]
[{"$nulls":4},"Кугарчинский муниципальный район","Нукаевский сельский совет","80638463"]
[{"$nulls":4},"Кугарчинский муниципальный район","Побоищенский сельский совет","80638470"]
[{"$nulls":4},"Кугарчинский муниципальный район","Санзяповский сельский совет","80638473"]
[{"$nulls":4},"Кугарчинский муниципальный район","Тляумбетовский сельский совет","80638475"]
[{"$nulls":4},"Кугарчинский муниципальный район","Уральский сельский совет","80638480"]
[{"$nulls":4},"Кугарчинский муниципальный район","Чапаевский сельский совет","80638483"]
[{"$nulls":4},"Кугарчинский муниципальный район","Юлдыбаевский сельский совет","80638485"]
[{"$nulls":4},"Кугарчинский муниципальный район","Юмагузинский сельский совет","80638487"]
[{"$nulls":4},"Кугарчинский муниципальный район","Ялчинский сельский совет","80638495"]
[{"$nulls":4},"Кушнаренковский муниципальный район"," Все муниципальные образования","80640000"]
[{"$nulls":4},"Кушнаренковский муниципальный район","Ахметовский сельский совет","80640405"]
[{"$nulls":4},"Кушнаренковский муниципальный район","Бакаевский сельский совет","80640410"]
[{"$nulls":4},"Кушнаренковский муниципальный район","Горьковский сельский совет","80640415"]
[{"$nulls":4},"Кушнаренковский муниципальный район","Карача-Елгинский сельский совет","80640430"]
[{"$nulls":4},"Кушнаренковский муниципальный район","Кушнаренковский сельский совет","80640435"]
[{"$nulls":4},"Кушнаренковский муниципальный район","Матвеевский сельский совет","80640440"]
[{"$nulls":4},"Кушнаренковский муниципальный район","Расмекеевский сельский совет","80640465"]
[{"$nulls":4},"Кушнаренковский муниципальный район","Старогумеровский сельский совет","80640470"]
[{"$nulls":4},"Кушнаренковский муниципальный район","Старокамышлинский сельский совет","80640475"]
[{"$nulls":4},"Кушнаренковский муниципальный район","Старокурмашевский сельский совет","80640477"]
[{"$nulls":4},"Кушнаренковский муниципальный район","Старотукмаклинский сельский совет","80640480"]
[{"$nulls":4},"Кушнаренковский муниципальный район","Шариповский сельский совет","80640490"]
[{"$nulls":4},"Куюргазинский муниципальный район"," Все муниципальные образования","80639000"]
[{"$nulls":4},"Куюргазинский муниципальный район","Бахмутский сельский совет","80639410"]
[{"$nulls":4},"Куюргазинский муниципальный район","Ермолаевский сельский совет","80639412"]
[{"$nulls":4},"Куюргазинский муниципальный район","Зяк-Ишметовский сельский совет","80639417"]
[{"$nulls":4},"Куюргазинский муниципальный район","Илькинеевский сельский совет","80639415"]
[{"$nulls":4},"Куюргазинский муниципальный район","Кривле-Илюшкинский сельский совет","80639420"]
[{"$nulls":4},"Куюргазинский муниципальный район","Ленинский сельский совет","80639425"]
[{"$nulls":4},"Куюргазинский муниципальный район","Мурапталовский сельский совет","80639435"]
[{"$nulls":4},"Куюргазинский муниципальный район","Отрадинский сельский совет","80639440"]
[{"$nulls":4},"Куюргазинский муниципальный район","Свободинский сельский совет","80639450"]
[{"$nulls":4},"Куюргазинский муниципальный район","Таймасовский сельский совет","80639455"]
[{"$nulls":4},"Куюргазинский муниципальный район","Шабагишский сельский совет","80639460"]
[{"$nulls":4},"Куюргазинский муниципальный район","Якшимбетовский сельский совет","80639465"]
[{"$nulls":4},"Мелеузовский муниципальный район"," Все муниципальные образования","80641000"]
[{"$nulls":4},"Мелеузовский муниципальный район","Абитовский сельский совет","80641402"]
[{"$nulls":4},"Мелеузовский муниципальный район","Александровский сельский совет","80641405"]
[{"$nulls":4},"Мелеузовский муниципальный район","Аптраковский сельский совет","80641410"]
[{"$nulls":4},"Мелеузовский муниципальный район","Араслановский сельский совет","80641415"]
[{"$nulls":4},"Мелеузовский муниципальный район","Воскресенский сельский совет","80641422"]
[{"$nulls":4},"Мелеузовский муниципальный район","Город Мелеуз","80641101"]
[{"$nulls":4},"Мелеузовский муниципальный район","Денисовский сельский совет","80641435"]
[{"$nulls":4},"Мелеузовский муниципальный район","Зирганский сельский совет","80641430"]
[{"$nulls":4},"Мелеузовский муниципальный район","Иштугановский сельский совет","80641445"]
[{"$nulls":4},"Мелеузовский муниципальный район","Корнеевский сельский совет","80641480"]
[{"$nulls":4},"Мелеузовский муниципальный район","Мелеузовский сельский совет","80641450"]
[{"$nulls":4},"Мелеузовский муниципальный район","Нордовский сельский совет","80641455"]
[{"$nulls":4},"Мелеузовский муниципальный район","Нугушевский сельский совет","80641460"]
[{"$nulls":4},"Мелеузовский муниципальный район","Партизанский сельский совет","80641465"]
[{"$nulls":4},"Мелеузовский муниципальный район","Первомайский сельский совет","80641470"]
[{"$nulls":4},"Мелеузовский муниципальный район","Сарышевский сельский совет","80641475"]
[{"$nulls":4},"Мелеузовский муниципальный район","Шевченковский сельский совет","80641485"]
[{"$nulls":4},"Мечетлинский муниципальный район"," Все муниципальные образования","80642000"]
[{"$nulls":4},"Мечетлинский муниципальный район","Абдуллинский сельский совет","80642401"]
[{"$nulls":4},"Мечетлинский муниципальный район","Алегазовский сельский совет","80642405"]
[{"$nulls":4},"Мечетлинский муниципальный район","Большеокинский сельский совет","80642410"]
[{"$nulls":4},"Мечетлинский муниципальный район","Большеустьикинский сельский совет","80642415"]
[{"$nulls":4},"Мечетлинский муниципальный район","Дуван-Мечетлинский сельский совет","80642420"]
[{"$nulls":4},"Мечетлинский муниципальный район","Кургатовский сельский совет","80642423"]
[{"$nulls":4},"Мечетлинский муниципальный район","Лемез-Тамакский сельский совет","80642425"]
[{"$nulls":4},"Мечетлинский муниципальный район","Малоустьикинский сельский совет","80642430"]
[{"$nulls":4},"Мечетлинский муниципальный район","Новомещеровский сельский совет","80642435"]
[{"$nulls":4},"Мечетлинский муниципальный район","Новояушевский сельский совет","80642442"]
[{"$nulls":4},"Мечетлинский муниципальный район","Ростовский сельский совет","80642445"]
[{"$nulls":4},"Мечетлинский муниципальный район","Юнусовский сельский совет","80642450"]
[{"$nulls":4},"Мишкинский муниципальный район"," Все муниципальные образования","80643000"]
[{"$nulls":4},"Мишкинский муниципальный район","Акбулатовский сельский совет","80643405"]
[{"$nulls":4},"Мишкинский муниципальный район","Баймурзинский сельский совет","80643410"]
[{"$nulls":4},"Мишкинский муниципальный район","Большесухоязовский сельский совет","80643415"]
[{"$nulls":4},"Мишкинский муниципальный район","Большешадинский сельский совет","80643420"]
[{"$nulls":4},"Мишкинский муниципальный район","Ирсаевский сельский совет","80643425"]
[{"$nulls":4},"Мишкинский муниципальный район","Кайраковский сельский совет","80643430"]
[{"$nulls":4},"Мишкинский муниципальный район","Камеевский сельский совет","80643435"]
[{"$nulls":4},"Мишкинский муниципальный район","Мавлютовский сельский совет","80643445"]
[{"$nulls":4},"Мишкинский муниципальный район","Мишкинский сельский совет","80643450"]
[{"$nulls":4},"Мишкинский муниципальный район","Новотроицкий сельский совет","80643455"]
[{"$nulls":4},"Мишкинский муниципальный район","Староарзаматовский сельский совет","80643460"]
[{"$nulls":4},"Мишкинский муниципальный район","Тынбаевский сельский совет","80643465"]
[{"$nulls":4},"Мишкинский муниципальный район","Урьядинский сельский совет","80643470"]
[{"$nulls":4},"Мишкинский муниципальный район","Чураевский сельский совет","80643480"]
[{"$nulls":4},"Миякинский муниципальный район"," Все муниципальные образования","80644000"]
[{"$nulls":4},"Миякинский муниципальный район","Биккуловский сельский совет","80644405"]
[{"$nulls":4},"Миякинский муниципальный район","Богдановский сельский совет","80644410"]
[{"$nulls":4},"Миякинский муниципальный район","Большекаркалинский сельский совет","80644415"]
[{"$nulls":4},"Миякинский муниципальный район","Енебей-Урсаевский сельский совет","80644420"]
[{"$nulls":4},"Миякинский муниципальный район","Зильдяровский сельский совет","80644425"]
[{"$nulls":4},"Миякинский муниципальный район","Ильчигуловский сельский совет","80644428"]
[{"$nulls":4},"Миякинский муниципальный район","Карановский сельский совет","80644429"]
[{"$nulls":4},"Миякинский муниципальный район","Качегановский сельский совет","80644430"]
[{"$nulls":4},"Миякинский муниципальный район","Кожай-Семеновский сельский совет","80644435"]
[{"$nulls":4},"Миякинский муниципальный район","Менеузтамакский сельский совет","80644440"]
[{"$nulls":4},"Миякинский муниципальный район","Миякибашевский сельский совет","80644445"]
[{"$nulls":4},"Миякинский муниципальный район","Миякинский сельский совет","80644450"]
[{"$nulls":4},"Миякинский муниципальный район","Новокарамалинский сельский совет","80644460"]
[{"$nulls":4},"Миякинский муниципальный район","Сатыевский сельский совет","80644465"]
[{"$nulls":4},"Миякинский муниципальный район","Уршакбашкарамалинский сельский совет","80644470"]
[{"$nulls":4},"Нуримановский муниципальный район"," Все муниципальные образования","80645000"]
[{"$nulls":4},"Нуримановский муниципальный район","Байгильдинский сельский совет","80645405"]
[{"$nulls":4},"Нуримановский муниципальный район","Баш-Шидинский сельский совет","80645410"]
[{"$nulls":4},"Нуримановский муниципальный район","Красногорский сельский совет","80645415"]
[{"$nulls":4},"Нуримановский муниципальный район","Красноключевский сельский совет","80645416"]
[{"$nulls":4},"Нуримановский муниципальный район","Никольский сельский совет","80645420"]
[{"$nulls":4},"Нуримановский муниципальный район","Новокулевский сельский совет","80645435"]
[{"$nulls":4},"Нуримановский муниципальный район","Новосубаевский сельский совет","80645440"]
[{"$nulls":4},"Нуримановский муниципальный район","Павловский сельский совет","80645444"]
[{"$nulls":4},"Нуримановский муниципальный район","Первомайский сельский совет","80645445"]
[{"$nulls":4},"Нуримановский муниципальный район","Сарвинский сельский совет","80645450"]
[{"$nulls":4},"Нуримановский муниципальный район","Старобедеевский сельский совет","80645452"]
[{"$nulls":4},"Нуримановский муниципальный район","Староисаевский сельский совет","80645455"]
[{"$nulls":4},"Салаватский муниципальный район"," Все муниципальные образования","80647000"]
[{"$nulls":4},"Салаватский муниципальный район","Алькинский сельский совет","80647405"]
[{"$nulls":4},"Салаватский муниципальный район","Аркауловский сельский совет","80647410"]
[{"$nulls":4},"Салаватский муниципальный район","Ишимбаевский сельский совет","80647415"]
[{"$nulls":4},"Салаватский муниципальный район","Лагеревский сельский совет","80647425"]
[{"$nulls":4},"Салаватский муниципальный район","Лаклинский сельский совет","80647430"]
[{"$nulls":4},"Салаватский муниципальный район","Малоязовский сельский совет","80647435"]
[{"$nulls":4},"Салаватский муниципальный район","Мечетлинский сельский совет","80647440"]
[{"$nulls":4},"Салаватский муниципальный район","Мещегаровский сельский совет","80647445"]
[{"$nulls":4},"Салаватский муниципальный район","Мурсалимкинский сельский совет","80647447"]
[{"$nulls":4},"Салаватский муниципальный район","Насибашевский сельский совет","80647450"]
[{"$nulls":4},"Салаватский муниципальный район","Первомайский сельский совет","80647476"]
[{"$nulls":4},"Салаватский муниципальный район","Салаватский сельский совет","80647453"]
[{"$nulls":4},"Салаватский муниципальный район","Таймеевский сельский совет","80647455"]
[{"$nulls":4},"Салаватский муниципальный район","Терменевский сельский совет","80647460"]
[{"$nulls":4},"Салаватский муниципальный район","Турналинский сельский совет","80647465"]
[{"$nulls":4},"Салаватский муниципальный район","Янгантауский сельский совет","80647475"]
[{"$nulls":4},"Стерлибашевский муниципальный район"," Все муниципальные образования","80648000"]
[{"$nulls":4},"Стерлибашевский муниципальный район","Айдаралинский сельский совет","80648405"]
[{"$nulls":4},"Стерлибашевский муниципальный район","Аллагуватский сельский совет","80648402"]
[{"$nulls":4},"Стерлибашевский муниципальный район","Бакеевский сельский совет","80648410"]
[{"$nulls":4},"Стерлибашевский муниципальный район","Бузатовский сельский совет","80648415"]
[{"$nulls":4},"Стерлибашевский муниципальный район","Кабакушский сельский совет","80648418"]
[{"$nulls":4},"Стерлибашевский муниципальный район","Карагушский сельский совет","80648420"]
[{"$nulls":4},"Стерлибашевский муниципальный район","Куганакбашевский сельский совет","80648425"]
[{"$nulls":4},"Стерлибашевский муниципальный район","Кундрякский сельский совет","80648430"]
[{"$nulls":4},"Стерлибашевский муниципальный район","Сарайсинский сельский совет","80648435"]
[{"$nulls":4},"Стерлибашевский муниципальный район","Старокалкашевский сельский совет","80648440"]
[{"$nulls":4},"Стерлибашевский муниципальный район","Стерлибашевский сельский совет","80648445"]
[{"$nulls":4},"Стерлибашевский муниципальный район","Тятер-Араслановский сельский совет","80648455"]
[{"$nulls":4},"Стерлибашевский муниципальный район","Халикеевский сельский совет","80648460"]
[{"$nulls":4},"Стерлибашевский муниципальный район","Янгурчинский сельский совет","80648465"]
[{"$nulls":4},"Стерлибашевский муниципальный район","Яшергановский сельский совет","80648470"]
[{"$nulls":4},"Стерлитамакский муниципальный район"," Все муниципальные образования","80649000"]
[{"$nulls":4},"Стерлитамакский муниципальный район","Айгулевский сельский совет","80649404"]
[{"$nulls":4},"Стерлитамакский муниципальный район","Алатанинский сельский совет","80649412"]
[{"$nulls":4},"Стерлитамакский муниципальный район","Ашкадарский сельский совет","80649416"]
[{"$nulls":4},"Стерлитамакский муниципальный район","Аючевский сельский совет","80649418"]
[{"$nulls":4},"Стерлитамакский муниципальный район","Буриказгановский сельский совет","80649428"]
[{"$nulls":4},"Стерлитамакский муниципальный район","Казадаевский сельский совет","80649436"]
[{"$nulls":4},"Стерлитамакский муниципальный район","Константиноградовский сельский совет","80649420"]
[{"$nulls":4},"Стерлитамакский муниципальный район","Красноярский сельский совет","80649444"]
[{"$nulls":4},"Стерлитамакский муниципальный район","Куганакский сельский совет","80649440"]
[{"$nulls":4},"Стерлитамакский муниципальный район","Максимовский сельский совет","80649424"]
[{"$nulls":4},"Стерлитамакский муниципальный район","Наумовский сельский совет","80649448"]
[{"$nulls":4},"Стерлитамакский муниципальный район","Николаевский сельский совет","80649452"]
[{"$nulls":4},"Стерлитамакский муниципальный район","Октябрьский сельский совет","80649460"]
[{"$nulls":4},"Стерлитамакский муниципальный район","Отрадовский сельский совет","80649456"]
[{"$nulls":4},"Стерлитамакский муниципальный район","Первомайский сельский совет","80649464"]
[{"$nulls":4},"Стерлитамакский муниципальный район","Подлесненский сельский совет","80649468"]
[{"$nulls":4},"Стерлитамакский муниципальный район","Рощинский сельский совет","80649478"]
[{"$nulls":4},"Стерлитамакский муниципальный район","Рязановский сельский совет","80649480"]
[{"$nulls":4},"Стерлитамакский муниципальный район","Тюрюшлинский сельский совет","80649488"]
[{"$nulls":4},"Стерлитамакский муниципальный район","Услинский сельский совет","80649492"]
[{"$nulls":4},"Татышлинский муниципальный район"," Все муниципальные образования","80650000"]
[{"$nulls":4},"Татышлинский муниципальный район","Акбулатовский сельский совет","80650405"]
[{"$nulls":4},"Татышлинский муниципальный район","Аксаитовский сельский совет","80650410"]
[{"$nulls":4},"Татышлинский муниципальный район","Бадряшевский сельский совет","80650415"]
[{"$nulls":4},"Татышлинский муниципальный район","Буль-Кайпановский сельский совет","80650420"]
[{"$nulls":4},"Татышлинский муниципальный район","Верхнетатышлинский сельский совет","80650425"]
[{"$nulls":4},"Татышлинский муниципальный район","Кальмияровский сельский совет","80650430"]
[{"$nulls":4},"Татышлинский муниципальный район","Кальтяевский сельский совет","80650435"]
[{"$nulls":4},"Татышлинский муниципальный район","Кудашевский сельский совет","80650440"]
[{"$nulls":4},"Татышлинский муниципальный район","Курдымский сельский совет","80650445"]
[{"$nulls":4},"Татышлинский муниципальный район","Нижнебалтачевский сельский совет","80650450"]
[{"$nulls":4},"Татышлинский муниципальный район","Новотатышлинский сельский совет","80650455"]
[{"$nulls":4},"Татышлинский муниципальный район","Шулгановский сельский совет","80650460"]
[{"$nulls":4},"Татышлинский муниципальный район","Ялгыз-Наратский сельский совет","80650465"]
[{"$nulls":4},"Туймазинский муниципальный район"," Все муниципальные образования","80651000"]
[{"$nulls":4},"Туймазинский муниципальный район","Бишкураевский сельский совет","80651405"]
[{"$nulls":4},"Туймазинский муниципальный район","Верхнебишиндинский сельский совет","80651410"]
[{"$nulls":4},"Туймазинский муниципальный район","Верхнетроицкий сельский совет","80651415"]
[{"$nulls":4},"Туймазинский муниципальный район","Гафуровский сельский совет","80651417"]
[{"$nulls":4},"Туймазинский муниципальный район","Город Туймазы","80651101"]
[{"$nulls":4},"Туймазинский муниципальный район","Ильчимбетовский сельский совет","80651420"]
[{"$nulls":4},"Туймазинский муниципальный район","Какрыбашевский сельский совет","80651425"]
[{"$nulls":4},"Туймазинский муниципальный район","Кандринский сельский совет","80651427"]
[{"$nulls":4},"Туймазинский муниципальный район","Карамалы-Губеевский сельский совет","80651430"]
[{"$nulls":4},"Туймазинский муниципальный район","Каратовский сельский совет","80651435"]
[{"$nulls":4},"Туймазинский муниципальный район","Нижнетроицкий сельский совет","80651439"]
[{"$nulls":4},"Туймазинский муниципальный район","Николаевский сельский совет","80651440"]
[{"$nulls":4},"Туймазинский муниципальный район","Сайрановский сельский совет","80651445"]
[{"$nulls":4},"Туймазинский муниципальный район","Серафимовский сельский совет","80651447"]
[{"$nulls":4},"Туймазинский муниципальный район","Старотуймазинский сельский совет","80651455"]
[{"$nulls":4},"Туймазинский муниципальный район","Субханкуловский сельский совет","80651461"]
[{"$nulls":4},"Туймазинский муниципальный район","Татар-Улкановский сельский совет","80651465"]
[{"$nulls":4},"Туймазинский муниципальный район","Тюменяковский сельский совет","80651470"]
[{"$nulls":4},"Туймазинский муниципальный район","Чукадыбашевский сельский совет","80651475"]
[{"$nulls":4},"Уфимский муниципальный район"," Все муниципальные образования","80652000"]
[{"$nulls":4},"Уфимский муниципальный район","Авдонский сельский совет","80652405"]
[{"$nulls":4},"Уфимский муниципальный район","Алексеевский сельский совет","80652403"]
[{"$nulls":4},"Уфимский муниципальный район","Булгаковский сельский совет","80652410"]
[{"$nulls":4},"Уфимский муниципальный район","Дмитриевский сельский совет","80652415"]
[{"$nulls":4},"Уфимский муниципальный район","Жуковский сельский совет","80652418"]
[{"$nulls":4},"Уфимский муниципальный район","Зубовский сельский совет","80652420"]
[{"$nulls":4},"Уфимский муниципальный район","Кармасанский сельский совет","80652423"]
[{"$nulls":4},"Уфимский муниципальный район","Кирилловский сельский совет","80652425"]
[{"$nulls":4},"Уфимский муниципальный район","Красноярский сельский совет","80652430"]
[{"$nulls":4},"Уфимский муниципальный район","Миловский сельский совет","80652435"]
[{"$nulls":4},"Уфимский муниципальный район","Михайловский сельский совет","80652440"]
[{"$nulls":4},"Уфимский муниципальный район","Николаевский сельский совет","80652450"]
[{"$nulls":4},"Уфимский муниципальный район","Ольховский сельский совет","80652452"]
[{"$nulls":4},"Уфимский муниципальный район","Русско-Юрмашский сельский совет","80652455"]
[{"$nulls":4},"Уфимский муниципальный район","Таптыковский сельский совет","80652460"]
[{"$nulls":4},"Уфимский муниципальный район","Черкасский сельский совет","80652472"]
[{"$nulls":4},"Уфимский муниципальный район","Чесноковский сельский совет","80652473"]
[{"$nulls":4},"Уфимский муниципальный район","Шемякский сельский совет","80652475"]
[{"$nulls":4},"Уфимский муниципальный район","Юматовский сельский совет","80652480"]
[{"$nulls":4},"Учалинский муниципальный район"," Все муниципальные образования","80653000"]
[{"$nulls":4},"Учалинский муниципальный район","Амангильдинский сельский совет","80653410"]
[{"$nulls":4},"Учалинский муниципальный район","Ахуновский сельский совет","80653415"]
[{"$nulls":4},"Учалинский муниципальный район","Буйдинский сельский совет","80653416"]
[{"$nulls":4},"Учалинский муниципальный район","Город Учалы","80653101"]
[{"$nulls":4},"Учалинский муниципальный район","Ильчигуловский сельский совет","80653420"]
[{"$nulls":4},"Учалинский муниципальный район","Ильчинский сельский совет","80653425"]
[{"$nulls":4},"Учалинский муниципальный район","Имангуловский сельский совет","80653430"]
[{"$nulls":4},"Учалинский муниципальный район","Кирябинский сельский совет","80653440"]
[{"$nulls":4},"Учалинский муниципальный район","Кунакбаевский сельский совет","80653445"]
[{"$nulls":4},"Учалинский муниципальный район","Мансуровский сельский совет","80653449"]
[{"$nulls":4},"Учалинский муниципальный район","Миндякский сельский совет","80653448"]
[{"$nulls":4},"Учалинский муниципальный район","Наурузовский сельский совет","80653450"]
[{"$nulls":4},"Учалинский муниципальный район","Новобайрамгуловский сельский совет","80653455"]
[{"$nulls":4},"Учалинский муниципальный район","Поляковский сельский совет","80653465"]
[{"$nulls":4},"Учалинский муниципальный район","Сафаровский сельский совет","80653470"]
[{"$nulls":4},"Учалинский муниципальный район","Тунгатаровский сельский совет","80653484"]
[{"$nulls":4},"Учалинский муниципальный район","Уразовский сельский совет","80653488"]
[{"$nulls":4},"Учалинский муниципальный район","Уральский сельский совет","80653491"]
[{"$nulls":4},"Учалинский муниципальный район","Учалинский сельский совет","80653496"]
[{"$nulls":4},"Федоровский муниципальный район"," Все муниципальные образования","80654000"]
[{"$nulls":4},"Федоровский муниципальный район","Бала-Четырманский сельский совет","80654405"]
[{"$nulls":4},"Федоровский муниципальный район","Балыклинский сельский совет","80654410"]
[{"$nulls":4},"Федоровский муниципальный район","Булякаевский сельский совет","80654415"]
[{"$nulls":4},"Федоровский муниципальный район","Верхнеяушевский сельский совет","80654416"]
[{"$nulls":4},"Федоровский муниципальный район","Гончаровский сельский совет","80654417"]
[{"$nulls":4},"Федоровский муниципальный район","Дедовский сельский совет","80654420"]
[{"$nulls":4},"Федоровский муниципальный район","Денискинский сельский совет","80654425"]
[{"$nulls":4},"Федоровский муниципальный район","Каралачикский сельский совет","80654427"]
[{"$nulls":4},"Федоровский муниципальный район","Михайловский сельский совет","80654430"]
[{"$nulls":4},"Федоровский муниципальный район","Покровский сельский совет","80654440"]
[{"$nulls":4},"Федоровский муниципальный район","Пугачевский сельский совет","80654445"]
[{"$nulls":4},"Федоровский муниципальный район","Разинский сельский совет","80654450"]
[{"$nulls":4},"Федоровский муниципальный район","Теняевский сельский совет","80654455"]
[{"$nulls":4},"Федоровский муниципальный район","Федоровский сельский совет","80654460"]
[{"$nulls":4},"Хайбуллинский муниципальный район"," Все муниципальные образования","80655000"]
[{"$nulls":4},"Хайбуллинский муниципальный район","Абишевский сельский совет","80655405"]
[{"$nulls":4},"Хайбуллинский муниципальный район","Акъюловский сельский совет","80655410"]
[{"$nulls":4},"Хайбуллинский муниципальный район","Акъярский сельский совет","80655415"]
[{"$nulls":4},"Хайбуллинский муниципальный район","Антинганский сельский совет","80655420"]
[{"$nulls":4},"Хайбуллинский муниципальный район","Бурибайский сельский совет","80655424"]
[{"$nulls":4},"Хайбуллинский муниципальный район","Ивановский сельский совет","80655425"]
[{"$nulls":4},"Хайбуллинский муниципальный район","Маканский сельский совет","80655430"]
[{"$nulls":4},"Хайбуллинский муниципальный район","Новозирганский сельский совет","80655432"]
[{"$nulls":4},"Хайбуллинский муниципальный район","Самарский сельский совет","80655433"]
[{"$nulls":4},"Хайбуллинский муниципальный район","Таналыкский сельский совет","80655440"]
[{"$nulls":4},"Хайбуллинский муниципальный район","Татыр-Узякский сельский совет","80655435"]
[{"$nulls":4},"Хайбуллинский муниципальный район","Уфимский сельский совет","80655445"]
[{"$nulls":4},"Хайбуллинский муниципальный район","Федоровский сельский совет","80655450"]
[{"$nulls":4},"Хайбуллинский муниципальный район","Целинный сельский совет","80655455"]
[{"$nulls":4},"Чекмагушевский муниципальный район"," Все муниципальные образования","80656000"]
[{"$nulls":4},"Чекмагушевский муниципальный район","Башировский сельский совет","80656410"]
[{"$nulls":4},"Чекмагушевский муниципальный район","Имянликулевский сельский совет","80656415"]
[{"$nulls":4},"Чекмагушевский муниципальный район","Калмашбашевский сельский совет","80656420"]
[{"$nulls":4},"Чекмагушевский муниципальный район","Новобалтачевский сельский совет","80656425"]
[{"$nulls":4},"Чекмагушевский муниципальный район","Новокутовский сельский совет","80656435"]
[{"$nulls":4},"Чекмагушевский муниципальный район","Рапатовский сельский совет","80656440"]
[{"$nulls":4},"Чекмагушевский муниципальный район","Резяповский сельский совет","80656445"]
[{"$nulls":4},"Чекмагушевский муниципальный район","Старокалмашевский сельский совет","80656450"]
[{"$nulls":4},"Чекмагушевский муниципальный район","Тайняшевский сельский совет","80656455"]
[{"$nulls":4},"Чекмагушевский муниципальный район","Тузлукушевский сельский совет","80656460"]
[{"$nulls":4},"Чекмагушевский муниципальный район","Урнякский сельский совет","80656465"]
[{"$nulls":4},"Чекмагушевский муниципальный район","Чекмагушевский сельский совет","80656470"]
[{"$nulls":4},"Чекмагушевский муниципальный район","Юмашевский сельский совет","80656475"]
[{"$nulls":4},"Чишминский муниципальный район"," Все муниципальные образования","80657000"]
[{"$nulls":4},"Чишминский муниципальный район","Алкинский сельский совет","80657405"]
[{"$nulls":4},"Чишминский муниципальный район","Аровский сельский совет","80657410"]
[{"$nulls":4},"Чишминский муниципальный район","Арслановский сельский совет","80657415"]
[{"$nulls":4},"Чишминский муниципальный район","Дмитриевский сельский совет","80657420"]
[{"$nulls":4},"Чишминский муниципальный район","Дурасовский сельский совет","80657425"]
[{"$nulls":4},"Чишминский муниципальный район","Енгалышевский сельский совет","80657430"]
[{"$nulls":4},"Чишминский муниципальный район","Еремеевский сельский совет","80657435"]
[{"$nulls":4},"Чишминский муниципальный район","Ибрагимовский сельский совет","80657440"]
[{"$nulls":4},"Чишминский муниципальный район","Кара-Якуповский сельский совет","80657445"]
[{"$nulls":4},"Чишминский муниципальный район","Лесной сельский совет","80657446"]
[{"$nulls":4},"Чишминский муниципальный район","Новотроицкий сельский совет","80657450"]
[{"$nulls":4},"Чишминский муниципальный район","Сафаровский сельский совет","80657455"]
[{"$nulls":4},"Чишминский муниципальный район","Чишминский поссовет","80657151"]
[{"$nulls":4},"Чишминский муниципальный район","Чишминский сельский совет","80657465"]
[{"$nulls":4},"Чишминский муниципальный район","Чувалкиповский сельский совет","80657470"]
[{"$nulls":4},"Чишминский муниципальный район","Шингак-Кульский сельский совет","80657475"]
[{"$nulls":4},"Шаранский муниципальный район"," Все муниципальные образования","80658000"]
[{"$nulls":4},"Шаранский муниципальный район","Акбарисовский сельский совет","80658405"]
[{"$nulls":4},"Шаранский муниципальный район","Базгиевский сельский совет","80658410"]
[{"$nulls":4},"Шаранский муниципальный район","Дмитриево-Полянский сельский совет","80658415"]
[{"$nulls":4},"Шаранский муниципальный район","Дюртюлинский сельский совет","80658420"]
[{"$nulls":4},"Шаранский муниципальный район","Зириклинский сельский совет","80658425"]
[{"$nulls":4},"Шаранский муниципальный район","Мичуринский сельский совет","80658430"]
[{"$nulls":4},"Шаранский муниципальный район","Нижнезаитовский сельский совет","80658435"]
[{"$nulls":4},"Шаранский муниципальный район","Нижнеташлинский сельский совет","80658440"]
[{"$nulls":4},"Шаранский муниципальный район","Нуреевский сельский совет","80658445"]
[{"$nulls":4},"Шаранский муниципальный район","Писаревский сельский совет","80658455"]
[{"$nulls":4},"Шаранский муниципальный район","Старотумбагушевский сельский совет","80658465"]
[{"$nulls":4},"Шаранский муниципальный район","Чалмалинский сельский совет","80658475"]
[{"$nulls":4},"Шаранский муниципальный район","Шаранский сельский совет","80658485"]
[{"$nulls":4},"Янаульский муниципальный район"," Все муниципальные образования","80659000"]
[{"$nulls":4},"Янаульский муниципальный район","Асавдыбашский сельский совет","80659410"]
[{"$nulls":4},"Янаульский муниципальный район","Байгузинский сельский совет","80659415"]
[{"$nulls":4},"Янаульский муниципальный район","Воядинский сельский совет","80659420"]
[{"$nulls":4},"Янаульский муниципальный район","Город Янаул","80659101"]
[{"$nulls":4},"Янаульский муниципальный район","Ижболдинский сельский совет","80659430"]
[{"$nulls":4},"Янаульский муниципальный район","Истякский сельский совет","80659435"]
[{"$nulls":4},"Янаульский муниципальный район","Иткинеевский сельский совет","80659440"]
[{"$nulls":4},"Янаульский муниципальный район","Кармановский сельский совет","80659445"]
[{"$nulls":4},"Янаульский муниципальный район","Кисак-Каинский сельский совет","80659450"]
[{"$nulls":4},"Янаульский муниципальный район","Максимовский сельский совет","80659453"]
[{"$nulls":4},"Янаульский муниципальный район","Месягутовский сельский совет","80659455"]
[{"$nulls":4},"Янаульский муниципальный район","Новоартаульский сельский совет","80659460"]
[{"$nulls":4},"Янаульский муниципальный район","Орловский сельский совет","80659465"]
[{"$nulls":4},"Янаульский муниципальный район","Первомайский сельский совет","80659470"]
[{"$nulls":4},"Янаульский муниципальный район","Сандугачевский сельский совет","80659475"]
[{"$nulls":4},"Янаульский муниципальный район","Староваряшский сельский совет","80659480"]
[{"$nulls":4},"Янаульский муниципальный район","Старокудашевский сельский совет","80659485"]
[{"$nulls":4},"Янаульский муниципальный район","Шудекский сельский совет","80659490"]
[{"$nulls":4},"Янаульский муниципальный район","Ямадинский сельский совет","80659495"]

{"sheet":"SheetList","index":16,"n_rows":35,"n_cols":8,"rows_kept":35,"hidden":true,"merged":[[34,3,48,7]]}
["Расчетные листы","Скрытые листы"]
["Инструкция","Columns"]
["Титульный","Rows"]
["Параметры","Reference"]
["Территории","SheetList"]
["Информация о тарифе","RegistryMunicipal"]
["Тепловая энергия"]
["Горячая вода (по компонентам)"]
["Плата за подключение"]
["Формы 12-13"]
["Публикация информации"]
["Комментарий"]
["Ошибки и предупреждения"]
{"$rows_empty":9}
[{"$nulls":7},"*"]
[]
[]
[]
[]
[]
[]
[{"$nulls":7},"*"]
[]
[]
[]
[]
[{"$nulls":3},"* кнопки \"Сделать образец\" и \"Сделать шаблон\" не проверяют правильность листов с тарифами и листа \"Комментарий\". Рекомендуется проверить эти листы вручную перед сохранением."]